Workbook

Sheet Příkaz
K1: Příloha OD č. 1/2022 Evidenční číslo:
B2: CESTOVNÍ PŘÍKAZ K USKUTEČNĚNÍ ZAHRANIČNÍ PRACOVNÍ CESTY
B4: Jméno a příjmení: | K4: Útvar:
B6: Zahájení cesty | D6: Datum: | H6: Místo:
B8: Místo konání: | X8: Stát, místo, pořadatel
B10: Název akce/Účel:
B12: Očekávaný přínos/výstup:
B14: Ukončení cesty | D14: Datum: | H14: Místo:
B16: Jízdné hradí:
B18: Návrh na určení dopravního prostředku: | G18: A | I18: =IF(G18<>"",(VLOOKUP(G18,List1!B3:C11,2,FALSE)),"") -> Autobus | N18: =IF(G18="V","Jízdenku zařizuje:",IF(G18="A","Jízdenku zařizuje:",IF(G18="L","Letenku zařizuje:",""))) -> Jízdenku zařizuje: | R18: ZO PF UK
B20: Předpokládaná výše jízdních výdajů za jehož použití mají být poskytnuty náhrady jízdních výdajů: | R20: 0
B22: Úhrada ostatních výdajů (PF UK, grant nebo projekt) | K22: Předpokládáná výše ostatních výdajů v Kč
B24: Ubytování hradí: | X24: (PF UK, grant nebo projekt) | Z24: částka v Kč
Z25: částka v Kč
B26: Stravné hradí: | X26: (PF UK, grant nebo projekt) | Z26: částka v Kč
Z27: částka v Kč
B28: Nutné vedl. výd. hradí: | X28: (PF UK, grant nebo projekt) | Z28: částka v Kč
B30: Nutné vedlejší výdaje specifikace: | X30: Specifikace
B32: ="Cestovní pojištění ("&List1!R2&"), zajištuje a hradí:" -> Cestovní pojištění (1 den), zajištuje a hradí: | K32: Předpokládáné výdaje celkem | R32: =IF(OR(G18="SV",G18="SJ"),R24+R26+R28,R20+R24+R26+R28) -> 0
B34: Žádám o zálohu: | D34: Ne | G34: Výše zálohy: | J34: 0 | M34: CZK | X34: =IF(D34<>"",IF(J34<>"",(IF(M34="CZK",1,VLOOKUP(TODAY(),'Kurzy CNB'!$A$1:$AH$96,VLOOKUP(M34,List1!$S$4:$T$36,2,FALSE),TRUE)))*J34,""),"") -> 0 | Z34: Výše v Kč podle naposledy aktualizovaného kurzu
D35: =IF(AND(D34="Ano, na bank. Účet",M34<>"CZK"),"Na účet lze pouze CZK","") ->  | O35: =IF(D34="Ano, na bank. Účet","Číslo bankovního účtu","Datum vyplacení") -> Datum vyplacení
B37: POUŽITÍ SOUKROMÉHO VOZIDLA NA PRACOVNÍ CESTU
B38: Vyplní řidič vozidla (zaměstnanec) před cestou.
B40: Vlastník vozidla:
B42: Řidič vozidla: | F42: =IF(D4="","",D4) -> 
B44: RZ vozidla: | J44: Typ vozu:
B46: Datum povinn. proškolení řidiče: | J46: Číslo havarijní pojistky:
B48: Spolucestující:
B50: Prohlašuji, že vozidlo použité na této služební cestě | H50: NENÍ | J50: v evidenci plátců silniční daně pro rok 2022.
B51: Prohlašuji, že mám platný řidičský průkaz.
B52: Přílohy: | C52: - kopie velkého technického průkazu (datum aktuální technické kontroly) - kopie dokladu o zaplacení havarijního pojištění (pokud jste už neodevzdali na ekonomickém oddělení.)
C54: =IF(OR(G18="V",G18="A - VV",G18="V - VV",G18="L - VV",G18="A - VV",G18="A",G18="L",)," - doklad o předpokládané výši jízdních výdajů za dopravní prostředek, za jehož použití mají být poskytnuty náhrady jízdních výdajů","") -> - doklad o předpokládané výši jízdních výdajů za dopravní prostředek, za jehož použití mají být poskytnuty náhrady jízdních výdajů
B55: =IFERROR("Prohlašuji, že podám vyúčtování pracovní cesty a zprávu pracovní cestě nejpozději do " &TEXT(List1!AC1,"dd.mm.rrrr")&".","") -> 
B56: ="Žádám o náhradu jízdních výdajů "&IF(G18="VV","za každý kilometr jízdy sazbou základní náhrady a náhradou za spotřebované pohonné hmoty podle zákonných sazeb platných v době konání pracovní cesty.",IF(OR(G18="V - VV",G18="V"),"ve výši odpovídající ceně jízdenky za vlak do výše " & R20 &" Kč.",IF(OR(G18="A - VV",G18="A"),"ve výši odpovídající ceně jízdenky za autobus do výše " &R20&" Kč.",IF(OR(G18="L - VV",G18="L"),"ve výši odpovídající ceně letenky do výše " &R20&" Kč.","- NE.")))) -> Žádám o náhradu jízdních výdajů ve výši odpovídající ceně jízdenky za autobus do výše 0 Kč.
B59: V Praze dne | J59: Podpis zaměstnance
B69: Poznámka schvalujících
B71: Podpis řešitele grantu nebo projektu | K71: Podpis přímého nadřízeného
B75: Podpis vedoucího zahraničního oddělení | K75: Podpis tajemníka (správce rozpočtu)
B79: Podpis vedoucího ekonomického oddělení | K79: Podpis proděkanky

Sheet Vyúčtování test (hidden)
B2: VYÚČTOVÁNÍ PRACOVNÍ CESTY
B3: Datum | D3: Odjezd - příjezd | G3: Použitý dopr. prostředek2) | H3: Vzdálenost v km 1) | I3: Jízdné v případě AUV | J3: Jízdné a místní přeprava | K3: Stravné | L3: Noc- ležné | M3: Nutné vedlejší výdaje | N3: Celkem | R3: Upraveno
F4: v hod. | J4: Kč | K4: Kč | L4: Kč | M4: Kč | N4: Kč | R4: Kč | Y4: Vozidlo
B5: 2020-01-02 | C5: Odjezd | F5: 10:00:00 | I5: =IF(G5="VV",ROUND(H5*$Z$14+H5*$Z$18,2),"") ->  | K5: =R26 -> 691 | N5: =(N(I5)+J5+L5+M5) -> 0 | Q5: =VLOOKUP(P27,$AC$12:$AG$16,Q27+1,FALSE) -> 91 | T5: =IF(B5="","",IF(B7="","konec","průběh")) -> průběh | U5: =VLOOKUP(IF(B5="",0,(IF(B5=B3,1000,100)+IF(B5=B7,10,1))),List1!$B$22:$D$26,3,FALSE) -> 4 | V5: =B5 -> 2020-01-02 | W5: =IF(V5<>0,B5+F5,"") -> 2020-01-02T10:00:00 | Y5: SPZ
C6: Příjezd | F6: 12:00:00 | V6: =B5 -> 2020-01-02 | W6: =IF(V5<>0,B5+F6,"") -> 2020-01-02T12:00:00 | Y6: Palivo | Z6: nafta | AD6: =AD8 -> 43832
B7: 2020-01-05 | C7: Odjezd | F7: 15:00:00 | I7: =IF(G7="VV",ROUND(H7*$Z$14+H7*$Z$18,2),"") ->  | N7: =(N(I7)+J7+L7+M7) -> 0 | Q7: =VLOOKUP(P28,$AC$12:$AG$16,Q28+1,FALSE) -> 200 | T7: =IF(B7="","",IF(B9="","konec","průběh")) -> konec | U7: =VLOOKUP(IF(B7="",0,(IF(B7=B5,1000,100)+IF(B7=B9,10,1))),List1!$B$22:$D$26,3,FALSE) -> 4 | V7: =B7 -> 2020-01-05 | W7: =IF(V7<>0,B7+F7,"") -> 2020-01-05T15:00:00 | Y7: spotřeba 1 | Z7: 3.1
C8: Příjezd | F8: 20:00:00 | V8: =B7 -> 2020-01-05 | W8: =IF(V7<>0,B7+F8,"") -> 2020-01-05T20:00:00 | Y8: spotřeba 2 | AD8: =MIN(B5:B20) -> 2020-01-02 | AE8: =MIN(W5:W20) -> 2020-01-02T10:00:00
C9: Odjezd | I9: =IF(G9="VV",ROUND(H9*$Z$14+H9*$Z$18,2),"") ->  | N9: =(N(I9)+J9+L9+M9) -> 0 | T9: =IF(B9="","",IF(B11="","konec","průběh")) ->  | U9: =VLOOKUP(IF(B9="",0,(IF(B9=B7,1000,100)+IF(B9=B11,10,1))),List1!$B$22:$D$26,3,FALSE) -> 5 | V9: =B9 -> 00:00:00 | W9: =IF(V9<>0,B9+F9,"") ->  | Y9: spotřeba 3 | AD9: =MAX(B5:B20) -> 2020-01-05 | AE9: =MAX(W5:W20) -> 2020-01-05T20:00:00
C10: Příjezd | V10: =B9 -> 00:00:00 | W10: =IF(V9<>0,B9+F10,"") ->  | Y10: spotřeba 4
C11: Odjezd | I11: =IF(G11="VV",ROUND(H11*$Z$14+H11*$Z$18,2),"") ->  | N11: =(N(I11)+J11+L11+M11) -> 0 | T11: =IF(B11="","",IF(B13="","konec","průběh")) ->  | U11: =VLOOKUP(IF(B11="",0,(IF(B11=B9,1000,100)+IF(B11=B13,10,1))),List1!$B$22:$D$26,3,FALSE) -> 5 | V11: =B11 -> 00:00:00 | W11: =IF(V11<>0,B11+F11,"") ->  | Y11: Průměr - použitá spotřeba | Z11: =ROUND(AVERAGE(Z7:Z10),2) -> 3.1 | AD11: 0 - 5 hod | AE11: 5 až 12 hod. | AF11: 12 až 18 hod. | AG11: více než 18 hod.
C12: Příjezd | V12: =B11 -> 00:00:00 | W12: =IF(V11<>0,B11+F12,"") ->  | Y12: Cena paliva z dokladu | AA12: Pokud nezadáte cenu paliva z dokladu, bude použita cena z vyhlášky | AC12: počet jídel | AD12: 0 | AE12: I | AF12: II | AG12: III
C13: Odjezd | I13: =IF(G13="VV",ROUND(H13*$Z$14+H13*$Z$18,2),"") ->  | N13: =(N(I13)+J13+L13+M13) -> 0 | T13: =IF(B13="","",IF(B15="","konec","průběh")) ->  | U13: =VLOOKUP(IF(B13="",0,(IF(B13=B11,1000,100)+IF(B13=B15,10,1))),List1!$B$22:$D$26,3,FALSE) -> 5 | V13: =B13 -> 00:00:00 | W13: =IF(V13<>0,B13+F13,"") ->  | Y13: Náhrady | AC13: 0 | AD13: 0 | AE13: 90 | AF13: 140 | AG13: 200
C14: Příjezd | V14: =B13 -> 00:00:00 | W14: =IF(V13<>0,B13+F14,"") ->  | Y14: amortizace za km | Z14: 4.1 | AC14: 1 | AD14: 0 | AE14: =AE13*0.3 -> 27 | AF14: =0.65*AF13 -> 91 | AG14: =0.75*AG13 -> 150
C15: Odjezd | I15: =IF(G15="VV",ROUND(H15*$Z$14+H15*$Z$18,2),"") ->  | N15: =(N(I15)+J15+L15+M15) -> 0 | T15: =IF(B15="","",IF(B17="","konec","průběh")) ->  | U15: =VLOOKUP(IF(B15="",0,(IF(B15=B13,1000,100)+IF(B15=B17,10,1))),List1!$B$22:$D$26,3,FALSE) -> 5 | V15: =B15 -> 00:00:00 | W15: =IF(V15<>0,B15+F15,"") ->  | Y15: benzin 95 oktanů | Z15: 33.1 | AC15: 2 | AD15: 0 | AE15: 0 | AF15: =0.3*AF13 -> 42 | AG15: =0.5*AG13 -> 100
C16: Příjezd | V16: =B15 -> 00:00:00 | W16: =IF(V15<>0,B15+F16,"") ->  | Y16: benzin 98 oktanů | Z16: 37.1 | AC16: 3 | AD16: 0 | AE16: 0 | AF16: 0 | AG16: =0.25*AG13 -> 50
C17: Odjezd | I17: =IF(G17="VV",ROUND(H17*$Z$14+H17*$Z$18,2),"") ->  | N17: 0 | T17: =IF(B17="","",IF(B19="","konec","průběh")) ->  | U17: =VLOOKUP(IF(B17="",0,(IF(B17=B15,1000,100)+IF(B17=B19,10,1))),List1!$B$22:$D$26,3,FALSE) -> 5 | V17: =B17 -> 00:00:00 | W17: =IF(V17<>0,B17+F17,"") ->  | Y17: nafta | Z17: 33.6
C18: Příjezd | V18: =B17 -> 00:00:00 | W18: =IF(V17<>0,B17+F18,"") ->  | Y18: náhrada za km paliva | Z18: =ROUND(IF(Z12=0,(VLOOKUP(Z6,Y15:Z17,2,FALSE)),Z12)*Z11/100,4) -> 1.0416 | AA18: =IF(Z12<>"","použita cena z dokladu","použita cena z vyhlášky") -> použita cena z vyhlášky
C19: Odjezd | I19: =IF(G19="VV",ROUND(H19*$Z$14+H19*$Z$18,2),"") ->  | N19: 0 | T19: =IF(B19="","",IF(B21="","konec","průběh")) ->  | U19: =VLOOKUP(IF(B19="",0,(IF(B19=B17,1000,100)+IF(B19=B21,10,1))),List1!$B$22:$D$26,3,FALSE) -> 5 | V19: =B19 -> 00:00:00 | W19: =IF(V19<>0,B19+F19,"") -> 
C20: Příjezd | V20: =B19 -> 00:00:00 | W20: =IF(V19<>0,B19+F20,"") -> 
H21: Celkem | I21: =SUM(I5:I20) -> 0 | J21: =SUM(J5:J20) -> 0 | K21: =SUM(K5:K20) -> 691 | L21: =IF(E23="ano",0,SUM(L5:L20)) -> 0 | M21: =SUM(M5:M20) -> 0 | N21: =SUM(I21:M21) -> 691
B22: Strava poskytnuta bezplatně | E22: ano | H22: Záloha
B23: Ubytování poskytnuto bezplatně:* | E23: ano | H23: =IF((N21-N22)<0,"Přeplatek (účtovatel vrátí)", "Doplatek (účtovateli bude doplaceno)") -> Doplatek (účtovateli bude doplaceno) | N23: =ABS(CEILING(N21-N22,1)) -> 691
P24: =IF(O28="",1,IF((O27+O28)<=5/24,1,IF((O27+O28)<=12/24,2,IF((O27+O28)<=18/24,3,4)))) -> 4 | Q24: =VLOOKUP((IF((P28+P27)>3,3,(P28+P27))),$AC$12:$AG$16,P24+1,FALSE) -> 150
B25: V - Vlak | C25: SV - služební vozidlo | E25: V - VV - vlastní vozidlo s náhradou výdajů za vlak | K25: Bezplatně poskytnutá strava | P25: počet jídel | Q25: skupina | R25: Celkem | Y25: Přehled EU norem používaných v TP
B26: A - autobus | C26: CV - spolujízda | E26: A - VV - vlastní vozidlo s náhradou výdajů za autobus | K26: Datum | L26: snídaně | M26: oběd | N26: večeře | O26: doba | R26: =SUM(R27:R43) -> 691 | Y26: 80/1268/EHS | Z26: arit.průměr | AA26: 3 údaje v TP
B27: L - letadlo | C27: VV - vlastní vozidlo | E27: L - VV - vlastní vozidlo s náhradou výdajů za letadlo | K27: =IF(AD8<>0,AD8,"") -> 2020-01-02 | L27: ano | O27: =IF(K27<>"",IF(K28<>0,K27+1-AE8,AE9-AE8),"") -> 0.5833333333 | P27: =IF($E$22="ne",0,IF(LEFT(L27,1)="A",1,0)+IF(LEFT(M27,1)="A",1,0)+IF(LEFT(N27,1)="A",1,0)) -> 1 | Q27: =IF(OR(O27<=5/24+1/24/60/60/100,O27=""),1,IF(O27<=12/24,2,IF(O27<=18/24,3,4))) -> 3 | R27: =IF(AND(K29="",(Q7+Q5)<Q24),0,Q5) -> 91 | Y27: 93/116/ES | Z27: třetí údaj
K28: =IF(($AD$8+List1!A2)<=$AD$9,$AD$8+List1!A2,"") -> 2020-01-03 | O28: =IF(K28<>"",IF(K29<>"",1,$AE$9-K28),"") -> 1 | P28: 0 | Q28: =IF(OR(O28<=5/24+1/24/60/60/100,O28=""),1,IF(O28<=12/24,2,IF(O28<=18/24,3,4))) -> 4 | R28: =IF(AND(K29="",(Q7+Q5)<Q24),Q24,Q7) -> 200 | Y28: 1999/100/ES | Z28: třetí údaj
K29: =IF(($AD$8+List1!A3)<=$AD$9,$AD$8+List1!A3,"") -> 2020-01-04 | O29: 1 | P29: 0 | Q29: 4 | R29: =VLOOKUP(P29,$AC$12:$AG$16,Q29+1,FALSE) -> 200 | Y29: 2004/3/ES | Z29: třetí údaj
B30: Zdroj financování (PF UK, grant, jiný zdroj): | F30: Zpráva o výsledku pracovní cesty byla podána dne: | K30: =IF(($AD$8+List1!A4)<=$AD$9,$AD$8+List1!A4,"") -> 2020-01-05 | O30: 0.8333333333 | P30: 0 | Q30: 4 | R30: 200 | Y30: EU 692/2008 | Z30: třetí údaj
K31: =IF(($AD$8+List1!A5)<=$AD$9,$AD$8+List1!A5,"") ->  | P31: 0 | Q31: 1 | R31: 0 | Y31: EU 692/2008A,…F | Z31: třetí údaj
K32: =IF(($AD$8+List1!A6)<=$AD$9,$AD$8+List1!A6,"") ->  | P32: 0 | Q32: 1 | R32: 0 | Y32: EU/566/2011 | Z32: třetí údaj
K33: =IF(($AD$8+List1!A7)<=$AD$9,$AD$8+List1!A7,"") ->  | P33: 0 | Q33: 1 | R33: 0 | Y33: 2007/46/ES | Z33: třetí údaj
B34: Číslo bankovního účtu pro zasílání náhrad účtovateli: | K34: =IF(($AD$8+List1!A8)<=$AD$9,$AD$8+List1!A8,"") ->  | P34: 0 | Q34: 1 | R34: 0 | Y34: EHK 101,R101.00 | Z34: třetí údaj
K35: =IF(($AD$8+List1!A9)<=$AD$9,$AD$8+List1!A9,"") ->  | P35: 0 | Q35: 1 | R35: 0 | Y35: 459/2012/EU | Z35: třetí údaj
K36: =IF(($AD$8+List1!A10)<=$AD$9,$AD$8+List1!A10,"") ->  | P36: 0 | Q36: 1 | R36: 0 | Y36: 630/2012/EU | Z36: třetí údaj
B37: Prohlašuji, že jsem všechny údaje uvedl úplně a správně. | K37: =IF(($AD$8+List1!A11)<=$AD$9,$AD$8+List1!A11,"") ->  | P37: 0 | Q37: 1 | R37: 0 | Y37: EU195/2013 | Z37: třetí údaj
K38: =IF(($AD$8+List1!A12)<=$AD$9,$AD$8+List1!A12,"") ->  | P38: 0 | Q38: 1 | R38: 0 | Y38: 715/2007/ES | Z38: třetí údaj
K39: =IF(($AD$8+List1!A13)<=$AD$9,$AD$8+List1!A13,"") ->  | P39: 0 | Q39: 1 | R39: 0 | Y39: EU136/2014 | Z39: třetí údaj
K40: =IF(($AD$8+List1!A14)<=$AD$9,$AD$8+List1!A14,"") ->  | P40: 0 | Q40: 1 | R40: 0 | Y40: EU2016/646 | Z40: třetí údaj
K41: =IF(($AD$8+List1!A15)<=$AD$9,$AD$8+List1!A15,"") ->  | P41: 0 | Q41: 1 | R41: 0 | Y41: EU2017/1347 | Z41: třetí údaj
B42: Datum a podpis účtovatele | K42: =IF(($AD$8+List1!A16)<=$AD$9,$AD$8+List1!A16,"") ->  | P42: 0 | Q42: 1 | R42: 0 | Y42: EU2015/45 | Z42: třetí údaj
K43: =IF(($AD$8+List1!A17)<=$AD$9,$AD$8+List1!A17,"") ->  | P43: 0 | Q43: 1 | R43: 0 | Y43: jiná norma | Z43: arit.průměr
B47: Se způsobem provedení vyučtování souhlasí:
J50: Podpis přímého nadřízeného nebo řešitele grantu, projektu…
B52: Datum a podpis správce rozpočtu (tajemníka)
B56: Podpis vedoucího ekonom. odd. | J56: Podpis zaměstnance, který kontroloval a upravil vyúčtování (pokladní)

Sheet Vyúčtování
I1: Příloha OD č. 1/2022 | AB1: ="Kurzy ČNB jsou aktualizovány k "&TEXT(MAX('Kurzy CNB'!$A$2:$A$400),"dd.mm.rrrr") -> Kurzy ČNB jsou aktualizovány k 17.02.2022 | AI1: =60*60*24 -> 86400 | AT1: =IFERROR("Vyúčtování pracovní cesty a zprávu o pracovní cestě je nutné odevzdat nejpozději do " &TEXT(List1!$AC$1,"dd.mm.rrrr")&".","") -> 
B2: VYÚČTOVÁNÍ ZAHRANIČNÍ PRACOVNÍ CESTY
B3: Jméno a příjmení | E3: =T(Příkaz!D4) -> 
B4: Název akce/Účel: | E4: =T(Příkaz!D10) ->  | N4: stát | AK4: Vozidlo
B5: Místo konání akce | E5: =T(Příkaz!D8) ->  | N5: Německo | AK5: SPZ
E6: datum | F6: čas | G6: místo | N6: základní sazba zahraničního stravného | AK6: Palivo | AL6: benzin 95 oktanů | AP6: =AP8 -> 0
B7: Zahájení cesty | E7: 2022-01-03 | F7: 12:00:00 | S7: =E7+F7 -> 2022-01-03T12:00:00 | AA7: Neposkytnutí náhrady cestovních výdajů dle čl.15 OD 1/2022 v případě, že byla zaměstnanci poskytnuta náhrada v zahraničí nebo z jiného zdroje | AK7: spotřeba 1 | AL7: 2 | AM7: Doplňte kombinovanou spotřebu dle norem EU z TP a ostatní pole ponechte prázdné
B8: Překročení státní hranice/odlet | E8: 2022-01-03 | F8: 12:00:00 | G8: =IF(S8<S7,"překročení hranice nemůže být před začátkem cesty","") ->  | N8: =VLOOKUP(N5,List1!V3:Y180,4,FALSE) -> 45 | O8: =VLOOKUP(N5,List1!V3:Y180,2,FALSE) -> EUR | S8: =E8+F8 -> 2022-01-03T12:00:00 | AK8: spotřeba 2 | AM8: Pokud údaj o kombinované spotřebě v technickém průkazu není, vypočte se spotřeba PHM vozidla aritmetickým průměrem ze všech údajů o spotřebě uvedených v technickém průkazu.
B9: Překročení státní hranice/přílet | E9: 2022-01-03 | F9: 13:00:00 | G9: =IF(OR(E7>MAX('Kurzy CNB'!A2:A400),E16>MAX('Kurzy CNB'!A2:A400)),"Začátek cesty nebo datum zálohy je v období mimo načtené kurzy ČNB","") ->  | N9: použit kurz ze dne | S9: =E9+F9 -> 2022-01-03T13:00:00 | AK9: spotřeba 3
B10: Ukončení cesty | E10: 2022-01-03 | F10: 13:00:00 | N10: =IF(AND(E16<>"",E14<>"NE",OR(F16<>"",F17<>"")),E16,E7) -> 2022-01-03 | S10: =E10+F10 -> 2022-01-03T13:00:00 | AK10: spotřeba 4
B11: Strava poskytnuta bezplatně | E11: ano | G11: Celková vzdálenost v km při použití VV | K11: Poskytnuté náhrady za výdaje: | AA11: nárok | AB11: náhrada | AC11: k vyúčtování | AK11: Průměr - použitá spotřeba | AL11: =ROUND(AVERAGE(AL7:AL10),2) -> 2 | AP11: 0 - 5 hod | AQ11: 5 až 12 hod. | AR11: 12 až 18 hod. | AS11: více než 18 hod.
B12: Použitý dopr. prostředek | E12: VV | H12: =IF(E12="VV",CEILING(G12*$AL$16+G12*$AL$21,0.01),"") -> 0 | K12: ubytování | M12: EUR | O12: =IF(N12<>"",IF(M12<>"",(IF(M12="CZK",1,VLOOKUP($N$10,'Kurzy CNB'!$A$1:$AH$96,VLOOKUP(M12,List1!$S$4:$T$36,2,FALSE),TRUE)))*N12/VLOOKUP(M12,List1!$S$3:$U$36,3,FALSE),0),0) -> 0 | AA12: =SUM(I25:I26) -> 0 | AB12: =O12 -> 0 | AC12: =IF((AA12-AB12)<0,0,AA12-AB12) -> 0 | AK12: Cena paliva z dokladu | AL12: 1.122 | AM12: EUR | AO12: počet jídel | AP12: 0 | AQ12: I | AR12: II | AS12: III
K13: jízdné | M13: EUR | O13: =IF(N13<>"",IF(M13<>"",(IF(M13="CZK",1,VLOOKUP($N$10,'Kurzy CNB'!$A$1:$AH$96,VLOOKUP(M13,List1!$S$4:$T$36,2,FALSE),TRUE)))*N13/VLOOKUP(M13,List1!$S$3:$U$36,3,FALSE),0),0) -> 0 | AA13: =SUM(I21:I24) -> 0 | AB13: =O13 -> 0 | AC13: =IF((AA13-AB13)<0,0,AA13-AB13) -> 0 | AK13: Cena paliva z dokladu CZK | AL13: =CEILING(IF(AL12<>"",IF(AM12<>"",(IF(AM12="CZK",1,VLOOKUP($N$10,'Kurzy CNB'!$A$1:$AH$96,VLOOKUP(AM12,List1!$S$4:$T$36,2,FALSE),TRUE)))*AL12/VLOOKUP(AM12,List1!$S$3:$U$36,3,FALSE),0),0),0.0001) -> 27.8481 | AO13: 0 | AP13: 0 | AQ13: 108 | AR13: 160 | AS13: 246
B14: Poskytnuta záloha | E14: ne | G14: částka | H14: měna | I14: kurz ČNB | K14: ostatní | M14: EUR | O14: =IF(N14<>"",IF(M14<>"",(IF(M14="CZK",1,VLOOKUP($N$10,'Kurzy CNB'!$A$1:$AH$96,VLOOKUP(M14,List1!$S$4:$T$36,2,FALSE),TRUE)))*N14/VLOOKUP(M14,List1!$S$3:$U$36,3,FALSE),0),0) -> 0 | AA14: =SUM(I27:I28) -> 0 | AB14: 0 | AC14: 0 | AK14: Náhrady | AO14: 1 | AP14: 0 | AQ14: =AQ13*0.3 -> 32.4 | AR14: =0.65*AR13 -> 104 | AS14: =0.75*AS13 -> 184.5
B16: Záloha 1 | D16: vydaná dne | H16: EUR | I16: =IF(OR(E16="",H16="CZK"),1,VLOOKUP(E16,'Kurzy CNB'!$A$1:$AH$96,VLOOKUP(H16,List1!$S$4:$T$36,2,FALSE),TRUE)) -> 1 | J16: =CEILING(I16*F16,0.001) -> 0 | M16: Poskytnuté náhrady za stravné | AK16: amortizace za km | AL16: 4.7 | AO16: 2 | AP16: 0 | AQ16: 0 | AR16: =0.3*AR13 -> 48 | AS16: =0.5*AS13 -> 123
B17: Záloha 2 | D17: vydaná dne | E17: =E16 -> 00:00:00 | H17: CZK | I17: =IF(OR(E17="",H17="CZK",H17=""),1,VLOOKUP(E17,'Kurzy CNB'!$A$1:$AH$96,VLOOKUP(H17,List1!$S$4:$T$36,2,FALSE),TRUE)) -> 1 | J17: =CEILING(I17*F17,0.001) -> 0 | M17: EUR | O17: =IF(N17<>"",IF(M17<>"",(IF(M17="CZK",1,VLOOKUP($N$10,'Kurzy CNB'!$A$1:$AH$96,VLOOKUP(M17,List1!$S$4:$T$36,2,FALSE),TRUE)))*N17/VLOOKUP(M17,List1!$S$3:$U$36,3,FALSE),0),0) -> 0 | AA17: =SUM(O22:O23) -> 372.3 | AB17: =O17 -> 0 | AC17: =IF((AA17-AB17)<0,0,AA17-AB17) -> 372.3 | AK17: benzin 95 oktanů | AL17: 37.1 | AO17: 3 | AP17: 0 | AQ17: 0 | AR17: 0 | AS17: =0.25*AS13 -> 61.5
AB18: Celkem | AC18: =AC12+AC13+AC14+AC17 -> 372.3 | AK18: benzin 98 oktanů | AL18: 40.5
B19: VYÚČTOVÁNÍ | AK19: nafta | AL19: 36.1
D20: Popis | F20: měna | G20: částka | H20: měna | I20: částka | K20: Stravné | AK20: elektřina | AL20: 4.1
B21: Jízdní výdaje | D21: Vlastní vozidlo - VV | F21: CZK | G21: =H12 -> 0 | H21: CZK | I21: =G21 -> 0 | K21: měna | M21: částka | N21: měna | O21: částka | AK21: náhrada za km paliva | AL21: =ROUND(IF(AL13=0,(VLOOKUP(AL6,AK17:AL20,2,FALSE)),AL13)*AL11/100,4) -> 0.557 | AM21: =IF(AL13<>"","použita cena z dokladu","použita cena z vyhlášky") -> použita cena z dokladu
F22: CZK | H22: CZK | I22: =IF(G22<>"",IF(F22<>"",(IF(F22="CZK",1,VLOOKUP($N$10,'Kurzy CNB'!$A$1:$AH$96,VLOOKUP(F22,List1!$S$4:$T$36,2,FALSE),TRUE)))*G22/VLOOKUP(F22,List1!$S$3:$U$36,3,FALSE),""),"") ->  | K22: CZK | M22: =CEILING(SUM(AA27:AA55),0.01) -> 0 | N22: CZK | O22: =M22 -> 0
F23: EUR | H23: CZK | I23: =IF(G23<>"",IF(F23<>"",(IF(F23="CZK",1,VLOOKUP($N$10,'Kurzy CNB'!$A$1:$AH$96,VLOOKUP(F23,List1!$S$4:$T$36,2,FALSE),TRUE)))*G23/VLOOKUP(F23,List1!$S$3:$U$36,3,FALSE),""),"") ->  | K23: =O8 -> EUR | M23: =CEILING(SUM(AB27:AB55),0.01) -> 15 | N23: CZK | O23: =IF(M23<>"",VLOOKUP($N$10,'Kurzy CNB'!$A$1:$AH$96,VLOOKUP(K23,List1!$S$4:$T$36,2,FALSE),TRUE))*M23/VLOOKUP(K23,List1!$S$3:$U$36,3,FALSE) -> 372.3 | AP23: zahra
H24: CZK | I24: =IF(G24<>"",IF(F24<>"",(IF(F24="CZK",1,VLOOKUP($N$10,'Kurzy CNB'!$A$1:$AH$96,VLOOKUP(F24,List1!$S$4:$T$36,2,FALSE),TRUE)))*G24/VLOOKUP(F24,List1!$S$3:$U$36,3,FALSE),""),"") -> 
B25: Výdaje za ubytování | F25: EUR | H25: CZK | I25: =IF(G25<>"",IF(F25<>"",(IF(F25="CZK",1,VLOOKUP($N$10,'Kurzy CNB'!$A$1:$AH$96,VLOOKUP(F25,List1!$S$4:$T$36,2,FALSE),TRUE)))*G25/VLOOKUP(F25,List1!$S$3:$U$36,3,FALSE),""),"") ->  | K25: Bezplatně poskytnutá strava | W25: počet jídel | AA25: CZK | AB25: =O8 -> EUR | AP25: 0 - 1 hod | AQ25: 1 až 12 hod. | AR25: 12 až 18 hod. | AS25: více než 18 hod.
H26: CZK | I26: =IF(G26<>"",IF(F26<>"",(IF(F26="CZK",1,VLOOKUP($N$10,'Kurzy CNB'!$A$1:$AH$96,VLOOKUP(F26,List1!$S$4:$T$36,2,FALSE),TRUE)))*G26/VLOOKUP(F26,List1!$S$3:$U$36,3,FALSE),""),"") ->  | K26: Datum | M26: snídaně | N26: oběd | O26: večeře | P26: doba | Q26: začátek zahr | R26: konec zahr | S26: doba zahr | T26: doba CR | U26: přep zahr | V26: přep CR | X26: kod zahr | Y26: kod tuz | AA26: stravne CR | AB26: stravne zahr | AO26: počet jídel | AP26: 0 | AQ26: I | AR26: II | AS26: III
B27: Ostatní výdaje | F27: EUR | H27: CZK | I27: =IF(G27<>"",IF(F27<>"",(IF(F27="CZK",1,VLOOKUP($N$10,'Kurzy CNB'!$A$1:$AH$96,VLOOKUP(F27,List1!$S$4:$T$36,2,FALSE),TRUE)))*G27/VLOOKUP(F27,List1!$S$3:$U$36,3,FALSE),""),"") ->  | K27: =IF(E7<>0,E7,"") -> 2022-01-03 | P27: =IF(K27<>"",IF(K28<>"",K27+1-S7,S10-S7),"") -> 0.04166666666 | Q27: =IF(OR($E$8>K27,$E$9<K27),"",IF(K27=$E$8,$S$8,K27)) -> 2022-01-03T12:00:00 | R27: =IF(OR($E$8>K27,$E$9<K27),"",IF(K27=$E$9,$S$9,K27+1)) -> 2022-01-03T13:00:00 | S27: =IF(Q27="","",R27-Q27) -> 0.04166666666 | T27: =IF(P27<>"",IF(S27<>"",P27-S27,P27),"") -> 0 | U27: =IF(T27<5/24,S27,IF(S27<=(5/24+0.0000001),"",S27)) -> 0.04166666666 | V27: =IF(T27>=5/24,IF(S27<=(5/24+0.0000001),T27+S27,T27),T27) -> 0 | W27: =IF($E$11="ne",0,IF(LEFT(M27,1)="A",1,0)+IF(LEFT(N27,1)="A",1,0)+IF(LEFT(O27,1)="A",1,0)) -> 0 | X27: =IF(U27<>"",(IF(U27<(1/24-0.0000001),1,(IF(U27<=12/24,2,IF(U27<=18/24,3,4))))),"") -> 2 | Y27: =IF(V27<>"",(IF(V27<5/24,1,(IF(V27<=12/24,2,IF(V27<=18/24,3,4))))),"") -> 1 | AA27: =IF(Y27<>"",IF(X27="",VLOOKUP(W27,$AO$12:$AS$17,Y27+1,FALSE),VLOOKUP(0,$AO$12:$AS$17,Y27+1)),"") -> 0 | AB27: =IF(X27="","",IF(Y27=1,VLOOKUP(W27,$AO$26:$AS$30,X27+1,FALSE),VLOOKUP(W27,$AO$26:$AS$30,3,FALSE))) -> 15 | AO27: 0 | AP27: 0 | AQ27: =AS27/3 -> 15 | AR27: =AS27*2/3 -> 30 | AS27: =N8 -> 45
H28: CZK | I28: =IF(G28<>"",IF(F28<>"",(IF(F28="CZK",1,VLOOKUP($N$10,'Kurzy CNB'!$A$1:$AH$96,VLOOKUP(F28,List1!$S$4:$T$36,2,FALSE),TRUE)))*G28/VLOOKUP(F28,List1!$S$3:$U$36,3,FALSE),""),"") ->  | K28: =IF(($E$7+List1!A2)<=$E$10,$E$7+List1!A2,"") ->  | P28: =IF(K28<>"",IF(K29<>"",1,$S$10-K28),"") ->  | Q28: =IF(OR($E$8>K28,$E$9<K28),"",IF(K28=$E$8,$S$8,K28)) ->  | R28: =IF(OR($E$8>K28,$E$9<K28),"",IF(K28=$E$9,$S$9,K28+1)) ->  | S28: =IF(Q28="","",R28-Q28) ->  | U28: =IF(T28<5/24,S28,IF(S28<=(5/24+0.0000001),"",S28)) ->  | V28: =IF(T28>=5/24,IF(S28<=(5/24+0.0000001),T28+S28,T28),T28) ->  | W28: 0 | X28: =IF(U28<>"",(IF(U28<(1/24-0.0000001),1,(IF(U28<=12/24,2,IF(U28<=18/24,3,4))))),"") ->  | Y28: =IF(V28<>"",(IF(V28<5/24,1,(IF(V28<=12/24,2,IF(V28<=18/24,3,4))))),"") ->  | AB28: =IF(X28="","",IF(Y28=1,VLOOKUP(W28,$AO$26:$AS$30,X28+1,FALSE),VLOOKUP(W28,$AO$26:$AS$30,3,FALSE))) ->  | AO28: 1 | AP28: 0 | AQ28: =AQ27*0.3 -> 4.5 | AR28: =0.65*AR27 -> 19.5 | AS28: =0.75*AS27 -> 33.75
B29: Celkem (včetně stravného) | H29: CZK | I29: =AC12+AC13+AC14+AC17 -> 372.3 | K29: =IF(($E$7+List1!A3)<=$E$10,$E$7+List1!A3,"") ->  | R29: =IF(OR($E$8>K29,$E$9<K29),"",IF(K29=$E$9,$S$9,K29+1)) ->  | U29: =IF(T29<5/24,S29,IF(S29<=(5/24+0.0000001),"",S29)) ->  | W29: 0 | AK29: Přehled EU norem používaných v TP | AO29: 2 | AP29: 0 | AQ29: 0 | AR29: =0.3*AR27 -> 9 | AS29: =0.5*AS27 -> 22.5
B30: Záloha | H30: CZK | I30: =IF(E14="ne",0,CEILING(J16+J17,0.01)) -> 0 | K30: =IF(($E$7+List1!A4)<=$E$10,$E$7+List1!A4,"") ->  | W30: 0 | AK30: 80/1268/EHS | AL30: arit.průměr | AM30: 3 údaje v TP | AO30: 3 | AP30: 0 | AQ30: 0 | AR30: 0 | AS30: =0.25*AS27 -> 11.25
B31: =IF(I31<0,"Přeplatek (zaměstnanec vrátí)", "Doplatek (zaměstnanci bude doplaceno)") -> Doplatek (zaměstnanci bude doplaceno) | H31: CZK | I31: =(I29-I30)/(IF(H31="CZK",1,VLOOKUP($N$10,'Kurzy CNB'!$A$1:$AH$96,VLOOKUP(H31,List1!$S$4:$T$36,2,FALSE),TRUE))/VLOOKUP(H31,List1!$S$3:$U$36,3,FALSE)) -> 372.3 | K31: =IF(($E$7+List1!A5)<=$E$10,$E$7+List1!A5,"") ->  | W31: 0 | AK31: 93/116/ES | AL31: třetí údaj
K32: =IF(($E$7+List1!A6)<=$E$10,$E$7+List1!A6,"") ->  | W32: 0 | AK32: 1999/100/ES | AL32: třetí údaj
B33: Zdroj financování (PF UK, grant nebo projekt): | K33: =IF(($E$7+List1!A7)<=$E$10,$E$7+List1!A7,"") ->  | W33: 0 | AK33: 2004/3/ES | AL33: třetí údaj
K34: =IF(($E$7+List1!A8)<=$E$10,$E$7+List1!A8,"") ->  | W34: 0 | AK34: EU 692/2008 | AL34: třetí údaj
K35: =IF(($E$7+List1!A9)<=$E$10,$E$7+List1!A9,"") ->  | W35: 0 | AK35: EU 692/2008A,…F | AL35: třetí údaj
K36: =IF(($E$7+List1!A10)<=$E$10,$E$7+List1!A10,"") ->  | W36: 0 | AK36: EU/566/2011 | AL36: třetí údaj
K37: =IF(($E$7+List1!A11)<=$E$10,$E$7+List1!A11,"") ->  | W37: 0 | AK37: 2007/46/ES | AL37: třetí údaj
B38: Číslo bankovního účtu pro zasílání náhrad zaměstnanci: | K38: =IF(($E$7+List1!A12)<=$E$10,$E$7+List1!A12,"") ->  | W38: 0 | AK38: EHK 101,R101.00 | AL38: třetí údaj
K39: =IF(($E$7+List1!A13)<=$E$10,$E$7+List1!A13,"") ->  | W39: 0 | AK39: 459/2012/EU | AL39: třetí údaj
K40: =IF(($E$7+List1!A14)<=$E$10,$E$7+List1!A14,"") ->  | W40: 0 | AK40: 630/2012/EU | AL40: třetí údaj
K41: =IF(($E$7+List1!A15)<=$E$10,$E$7+List1!A15,"") ->  | W41: 0 | AK41: EU195/2013 | AL41: třetí údaj
B42: Prohlašuji, že jsem všechny údaje uvedl úplně, a že je zpráva ze zahraniční pracovní cesty přiložena. | K42: =IF(($E$7+List1!A16)<=$E$10,$E$7+List1!A16,"") ->  | W42: 0 | AK42: 715/2007/ES | AL42: třetí údaj
K43: =IF(($E$7+List1!A17)<=$E$10,$E$7+List1!A17,"") ->  | W43: 0 | AK43: EU136/2014 | AL43: třetí údaj
K44: =IF(($E$7+List1!A18)<=$E$10,$E$7+List1!A18,"") ->  | U44: =IF(T44<5/24,S44,IF(S44<=(5/24+0.0000001),"",S44)) ->  | W44: 0 | AK44: EU2016/646 | AL44: třetí údaj
K45: =IF(($E$7+List1!A19)<=$E$10,$E$7+List1!A19,"") ->  | U45: =IF(T45<5/24,S45,IF(S45<=(5/24+0.0000001),"",S45)) ->  | W45: 0 | AK45: EU2017/1347 | AL45: třetí údaj
K46: =IF(($E$7+List1!A20)<=$E$10,$E$7+List1!A20,"") ->  | U46: =IF(T46<5/24,S46,IF(S46<=(5/24+0.0000001),"",S46)) ->  | W46: 0 | AK46: EU2015/45 | AL46: třetí údaj
B47: Datum a podpis zaměstnance | K47: =IF(($E$7+List1!A21)<=$E$10,$E$7+List1!A21,"") ->  | W47: 0 | AK47: jiná norma | AL47: arit.průměr
K48: =IF(($E$7+List1!A22)<=$E$10,$E$7+List1!A22,"") ->  | W48: 0
K49: =IF(($E$7+List1!A23)<=$E$10,$E$7+List1!A23,"") ->  | W49: 0
K50: =IF(($E$7+List1!A24)<=$E$10,$E$7+List1!A24,"") ->  | W50: 0
B51: Podpis řešitele grantu nebo projektu | F51: Podpis vedoucího zahraničního oddělení | K51: =IF(($E$7+List1!A25)<=$E$10,$E$7+List1!A25,"") ->  | W51: 0
K52: =IF(($E$7+List1!A26)<=$E$10,$E$7+List1!A26,"") ->  | W52: 0
K53: =IF(($E$7+List1!A27)<=$E$10,$E$7+List1!A27,"") ->  | W53: 0
K54: =IF(($E$7+List1!A28)<=$E$10,$E$7+List1!A28,"") ->  | W54: 0
K55: =IF(($E$7+List1!A29)<=$E$10,$E$7+List1!A29,"") ->  | W55: 0
B56: Podpis přímého nadřízeného | F56: Podpis vedoucího ekonomického oddělení | K56: =IF(($E$7+List1!A30)<=$E$10,$E$7+List1!A30,"") ->  | P56: =IF(K56<>"",IF(K57<>"",1,$S$10-K56),"") ->  | Q56: =IF(OR($E$8>K56,$E$9<K56),"",IF(K56=$E$8,$S$8,K56)) ->  | R56: =IF(OR($E$8>K56,$E$9<K56),"",IF(K56=$E$9,$S$9,K56+1)) ->  | S56: =IF(Q56="","",R56-Q56) ->  | T56: =IF(P56<>"",IF(S56<>"",P56-S56,P56),"") ->  | U56: =IF(T56<5/24,S56,IF(S56<=(5/24+0.0000001),"",S56)) ->  | V56: =IF(T56>=5/24,IF(S56<=(5/24+0.0000001),T56+S56,T56),T56) ->  | W56: =IF($E$11="ne",0,IF(LEFT(M56,1)="A",1,0)+IF(LEFT(N56,1)="A",1,0)+IF(LEFT(O56,1)="A",1,0)) -> 0 | X56: =IF(U56<>"",(IF(U56<(1/24-0.0000001),1,(IF(U56<=12/24,2,IF(U56<=18/24,3,4))))),"") ->  | Y56: =IF(V56<>"",(IF(V56<5/24,1,(IF(V56<=12/24,2,IF(V56<=18/24,3,4))))),"") ->  | AA56: =IF(Y56<>"",IF(X56="",VLOOKUP(W56,$AO$12:$AS$17,Y56+1,FALSE),VLOOKUP(0,$AO$12:$AS$17,Y56+1)),"") ->  | AB56: =IF(X56="","",IF(Y56=1,VLOOKUP(W56,$AO$26:$AS$30,X56+1,FALSE),VLOOKUP(W56,$AO$26:$AS$30,3,FALSE))) -> 
K57: =IF(($E$7+List1!A31)<=$E$10,$E$7+List1!A31,"") ->  | W57: 0
K58: =IF(($E$7+List1!A32)<=$E$10,$E$7+List1!A32,"") ->  | W58: 0
B60: Podpis správce rozpočtu (tajemníka) | F60: Podpis pracovníka ekonomického oddělení, který kontroloval a upravil vyúčtování

Sheet Zpráva o cestě
K1: Příloha OD č. 1/2022
B2: ZPRÁVA O PRŮBĚHU A VÝSLEDCÍCH PRACOVNÍ CESTY | U2: =IFERROR("Vyúčtování pracovní cesty a zprávu o pracovní cestě je nutné odevzdat nejpozději do " &TEXT(List1!$AC$1,"dd.mm.rrrr")&".","") -> 
B4: Jméno a příjmení: | F4: =T(Příkaz!D4) -> 
B6: Útvar, katedra: | F6: =T(Příkaz!L4) -> 
B8: Datum a místo zahájení cesty: | F8: =T(Příkaz!F6) ->  | I8: =T(Příkaz!J6) -> 
B10: Místo konání: | F10: =T(Příkaz!D8) -> 
B12: Účel: | F12: =T(Příkaz!D10) -> 
B14: Datum a místo ukončení cesty: | F14: =T(Příkaz!F14) ->  | I14: =T(Příkaz!J14) -> 
B16: Počet dní: | F16: =List1!P2 -> 1
B18: Zdroj financování (PF UK, grant, projekt): | H18: =T(Příkaz!D16) -> 
B20: Způsob dopravy: | H20: =Příkaz!G18 -> A | K20: =IF(H20<>"",(VLOOKUP(H20,[1]List1!B3:C11,2,FALSE)),"") -> Autobus
B23: Průběh cesty:
B34: Výsledek pracovní cesty (přínos pracovní cesty):
B53: V Praze dne | J53: Podpis zaměstnance

Sheet Kurzy CNB
A1: Datum | B1: 1 AUD | C1: 1 BGN | D1: 1 BRL | E1: 1 CAD | F1: 1 CHF | G1: 1 CNY | H1: 1 DKK | I1: 1 EUR | J1: 1 GBP | K1: 1 HKD | L1: 1 HRK | M1: 100 HUF | N1: 1000 IDR | O1: 1 ILS | P1: 100 INR | Q1: 100 ISK | R1: 100 JPY | S1: 100 KRW | T1: 1 MXN | U1: 1 MYR | V1: 1 NOK | W1: 1 NZD | X1: 100 PHP | Y1: 1 PLN | Z1: 1 RON | AA1: 100 RUB | AB1: 1 SEK | AC1: 1 SGD | AD1: 100 THB | AE1: 1 TRY | AF1: 1 USD | AG1: 1 XDR | AH1: 1 ZAR
A2: 2022-01-03 | B2: 15.818 | C2: 12.69 | D2: 3.906 | E2: 17.21 | F2: 23.931 | G2: 3.441 | H2: 3.337 | I2: 24.82 | J2: 29.502 | K2: 2.803 | L2: 3.301 | M2: 6.751 | N2: 1.532 | O2: 7.068 | P2: 29.412 | Q2: 16.816 | R2: 19.016 | S2: 1.833 | T2: 1.068 | U2: 5.239 | V2: 2.481 | W2: 14.902 | X2: 42.757 | Y2: 5.408 | Z2: 5.016 | AA2: 29.362 | AB2: 2.41 | AC2: 16.189 | AD2: 65.897 | AE2: 1.646 | AF2: 21.86 | AG2: 30.595 | AH2: 1.382
A3: 2022-01-04 | B3: 15.784 | C3: 12.655 | D3: 3.857 | E3: 17.211 | F3: 23.903 | G3: 3.441 | H3: 3.328 | I3: 24.75 | J3: 29.599 | K3: 2.815 | L3: 3.292 | M3: 6.779 | N3: 1.534 | O3: 7.09 | P3: 29.394 | Q3: 16.746 | R3: 18.87 | S3: 1.829 | T3: 1.067 | U3: 5.242 | V3: 2.472 | W3: 14.849 | X3: 42.683 | Y3: 5.419 | Z3: 5.002 | AA3: 29.146 | AB3: 2.407 | AC3: 16.166 | AD3: 65.862 | AE3: 1.635 | AF3: 21.944 | AG3: 30.744 | AH3: 1.367
A4: 2022-01-05 | B4: 15.764 | C4: 12.567 | D4: 3.831 | E4: 17.076 | F4: 23.722 | G4: 3.414 | H4: 3.305 | I4: 24.58 | J4: 29.426 | K4: 2.789 | L4: 3.268 | M4: 6.788 | N4: 1.514 | O4: 7.03 | P4: 29.234 | Q4: 16.744 | R4: 18.759 | S4: 1.816 | T4: 1.063 | U4: 5.184 | V4: 2.465 | W4: 14.814 | X4: 42.637 | Y4: 5.382 | Z4: 4.97 | AA4: 28.697 | AB4: 2.397 | AC4: 16.04 | AD4: 65.439 | AE4: 1.613 | AF4: 21.739 | AG4: 30.359 | AH4: 1.372
A5: 2022-01-06 | B5: 15.547 | C5: 12.542 | D5: 3.81 | E5: 16.977 | F5: 23.6 | G5: 3.398 | H5: 3.297 | I5: 24.53 | J5: 29.345 | K5: 2.779 | L5: 3.261 | M5: 6.817 | N5: 1.506 | O5: 6.96 | P5: 29.118 | Q5: 16.71 | R5: 18.719 | S5: 1.801 | T5: 1.055 | U5: 5.146 | V5: 2.444 | W5: 14.645 | X5: 42.335 | Y5: 5.378 | Z5: 4.962 | AA5: 28.356 | AB5: 2.375 | AC5: 15.944 | AD5: 64.656 | AE5: 1.578 | AF5: 21.679 | AG5: 30.332 | AH5: 1.379
A6: 2022-01-07 | B6: 15.462 | C6: 12.495 | D6: 3.798 | E6: 17 | F6: 23.45 | G6: 3.391 | H6: 3.286 | I6: 24.44 | J6: 29.291 | K6: 2.772 | L6: 3.25 | M6: 6.813 | N6: 1.506 | O6: 6.955 | P6: 29.098 | Q6: 16.74 | R6: 18.668 | S6: 1.796 | T6: 1.057 | U6: 5.138 | V6: 2.437 | W6: 14.595 | X6: 42.094 | Y6: 5.372 | Z6: 4.942 | AA6: 28.659 | AB6: 2.376 | AC6: 15.912 | AD6: 64.204 | AE6: 1.554 | AF6: 21.626 | AG6: 30.243 | AH6: 1.384
A7: 2022-01-10 | B7: 15.444 | C7: 12.456 | D7: 3.809 | E7: 17.004 | F7: 23.317 | G7: 3.378 | H7: 3.275 | I7: 24.36 | J7: 29.212 | K7: 2.761 | L7: 3.237 | M7: 6.796 | N7: 1.504 | O7: 6.901 | P7: 29.073 | Q7: 16.662 | R7: 18.674 | S7: 1.797 | T7: 1.056 | U7: 5.125 | V7: 2.43 | W7: 14.542 | X7: 41.902 | Y7: 5.373 | Z7: 4.926 | AA7: 28.664 | AB7: 2.364 | AC7: 15.877 | AD7: 64.023 | AE7: 1.547 | AF7: 21.525 | AG7: 30.096 | AH7: 1.376
A8: 2022-01-11 | B8: 15.449 | C8: 12.483 | D8: 3.821 | E8: 17.035 | F8: 23.25 | G8: 3.379 | H8: 3.281 | I8: 24.415 | J8: 29.252 | K8: 2.762 | L8: 3.245 | M8: 6.83 | N8: 1.506 | O8: 6.878 | P8: 29.153 | Q8: 16.609 | R8: 18.645 | S8: 1.805 | T8: 1.057 | U8: 5.138 | V8: 2.438 | W8: 14.557 | X8: 42.11 | Y8: 5.372 | Z8: 4.937 | AA8: 28.769 | AB8: 2.369 | AC8: 15.915 | AD8: 64.515 | AE8: 1.566 | AF8: 21.538 | AG8: 30.151 | AH8: 1.379
A9: 2022-01-12 | B9: 15.495 | C9: 12.486 | D9: 3.847 | E9: 17.127 | F9: 23.285 | G9: 3.375 | H9: 3.282 | I9: 24.42 | J9: 29.302 | K9: 2.754 | L9: 3.246 | M9: 6.858 | N9: 1.5 | O9: 6.895 | P9: 29.055 | Q9: 16.612 | R9: 18.606 | S9: 1.804 | T9: 1.053 | U9: 5.129 | V9: 2.461 | W9: 14.561 | X9: 42.06 | Y9: 5.385 | Z9: 4.938 | AA9: 28.8 | AB9: 2.381 | AC9: 15.898 | AD9: 64.39 | AE9: 1.556 | AF9: 21.47 | AG9: 30.066 | AH9: 1.391
A10: 2022-01-13 | B10: 15.571 | C10: 12.505 | D10: 3.851 | E10: 17.106 | F10: 23.399 | G10: 3.355 | H10: 3.287 | I10: 24.46 | J10: 29.273 | K10: 2.74 | L10: 3.252 | M10: 6.885 | N10: 1.493 | O10: 6.864 | P10: 28.874 | Q10: 16.639 | R10: 18.678 | S10: 1.8 | T10: 1.045 | U10: 5.11 | V10: 2.462 | W10: 14.667 | X10: 41.764 | Y10: 5.392 | Z10: 4.947 | AA10: 28.242 | AB10: 2.389 | AC10: 15.857 | AD10: 64.297 | AE10: 1.571 | AF10: 21.34 | AG10: 29.916 | AH10: 1.386
A11: 2022-01-14 | B11: 15.5 | C11: 12.523 | D11: 3.867 | E11: 17.094 | F11: 23.481 | G11: 3.368 | H11: 3.292 | I11: 24.495 | J11: 29.332 | K11: 2.749 | L11: 3.258 | M11: 6.878 | N11: 1.497 | O11: 6.888 | P11: 28.836 | Q11: 16.663 | R11: 18.816 | S11: 1.799 | T11: 1.053 | U11: 5.122 | V11: 2.452 | W11: 14.627 | X11: 41.717 | Y11: 5.392 | Z11: 4.956 | AA11: 27.824 | AB11: 2.385 | AC11: 15.889 | AD11: 64.411 | AE11: 1.576 | AF11: 21.4 | AG11: 30.119 | AH11: 1.391
A12: 2022-01-17 | B12: 15.479 | C12: 12.512 | D12: 3.897 | E12: 17.128 | F12: 23.461 | G12: 3.38 | H12: 3.288 | I12: 24.47 | J12: 29.283 | K12: 2.754 | L12: 3.251 | M12: 6.872 | N12: 1.499 | O12: 6.899 | P12: 28.885 | Q12: 16.669 | R12: 18.731 | S12: 1.8 | T12: 1.055 | U12: 5.13 | V12: 2.456 | W12: 14.597 | X12: 41.835 | Y12: 5.408 | Z12: 4.949 | AA12: 28.004 | AB12: 2.375 | AC12: 15.917 | AD12: 64.808 | AE12: 1.601 | AF12: 21.461 | AG12: 30.215 | AH12: 1.39
A13: 2022-01-18 | B13: 15.427 | C13: 12.488 | D13: 3.89 | E13: 17.166 | F13: 23.45 | G13: 3.385 | H13: 3.282 | I13: 24.425 | J13: 29.191 | K13: 2.758 | L13: 3.247 | M13: 6.843 | N13: 1.499 | O13: 6.868 | P13: 28.799 | Q13: 16.729 | R13: 18.73 | S13: 1.802 | T13: 1.055 | U13: 5.136 | V13: 2.451 | W13: 14.539 | X13: 41.715 | Y13: 5.397 | Z13: 4.939 | AA13: 28.156 | AB13: 2.367 | AC13: 15.913 | AD13: 64.904 | AE13: 1.582 | AF13: 21.488 | AG13: 30.252 | AH13: 1.392
A14: 2022-01-19 | B14: 15.477 | C14: 12.429 | D14: 3.881 | E14: 17.188 | F14: 23.414 | G14: 3.376 | H14: 3.267 | I14: 24.31 | J14: 29.23 | K14: 2.75 | L14: 3.23 | M14: 6.831 | N14: 1.492 | O14: 6.84 | P14: 28.799 | Q14: 16.742 | R14: 18.719 | S14: 1.804 | T14: 1.052 | U14: 5.11 | V14: 2.447 | W14: 14.573 | X14: 41.604 | Y14: 5.375 | Z14: 4.916 | AA14: 28.104 | AB14: 2.35 | AC14: 15.897 | AD14: 64.874 | AE14: 1.576 | AF14: 21.427 | AG14: 30.075 | AH14: 1.398
A15: 2022-01-20 | B15: 15.491 | C15: 12.404 | D15: 3.937 | E15: 17.136 | F15: 23.368 | G15: 3.373 | H15: 3.26 | I15: 24.26 | J15: 29.136 | K15: 2.749 | L15: 3.223 | M15: 6.818 | N15: 1.493 | O15: 6.822 | P15: 28.758 | Q15: 16.685 | R15: 18.731 | S15: 1.798 | T15: 1.047 | U15: 5.109 | V15: 2.436 | W15: 14.5 | X15: 41.627 | Y15: 5.364 | Z15: 4.906 | AA15: 27.92 | AB15: 2.339 | AC15: 15.898 | AD15: 65.018 | AE15: 1.595 | AF15: 21.399 | AG15: 30.006 | AH15: 1.406
A16: 2022-01-21 | B16: 15.429 | C16: 12.447 | D16: 3.922 | E16: 17.125 | F16: 23.516 | G16: 3.385 | H16: 3.271 | I16: 24.345 | J16: 29.106 | K16: 2.755 | L16: 3.234 | M16: 6.796 | N16: 1.496 | O16: 6.825 | P16: 28.838 | Q16: 16.72 | R16: 18.852 | S16: 1.801 | T16: 1.048 | U16: 5.124 | V16: 2.421 | W16: 14.417 | X16: 41.849 | Y16: 5.371 | Z16: 4.923 | AA16: 28.028 | AB16: 2.337 | AC16: 15.952 | AD16: 65.164 | AE16: 1.599 | AF16: 21.452 | AG16: 30.084 | AH16: 1.419
A17: 2022-01-24 | B17: 15.455 | C17: 12.539 | D17: 3.961 | E17: 17.193 | F17: 23.787 | G17: 3.428 | H17: 3.295 | I17: 24.525 | J17: 29.261 | K17: 2.787 | L17: 3.257 | M17: 6.815 | N17: 1.513 | O17: 6.841 | P17: 29.072 | Q17: 16.844 | R17: 19.067 | S17: 1.812 | T17: 1.054 | U17: 5.179 | V17: 2.413 | W17: 14.508 | X17: 42.248 | Y17: 5.383 | Z17: 4.959 | AA17: 27.653 | AB17: 2.335 | AC17: 16.117 | AD17: 65.61 | AE17: 1.616 | AF17: 21.694 | AG17: 30.415 | AH17: 1.422
A18: 2022-01-25 | B18: 15.49 | C18: 12.522 | D18: 3.942 | E18: 17.194 | F18: 23.634 | G18: 3.434 | H18: 3.291 | I18: 24.495 | J18: 29.262 | K18: 2.792 | L18: 3.254 | M18: 6.813 | N18: 1.515 | O18: 6.827 | P18: 29.061 | Q18: 16.777 | R18: 19.061 | S18: 1.812 | T18: 1.052 | U18: 5.188 | V18: 2.416 | W18: 14.485 | X18: 42.41 | Y18: 5.353 | Z18: 4.953 | AA18: 27.6 | AB18: 2.332 | AC18: 16.16 | AD18: 65.694 | AE18: 1.606 | AF18: 21.737 | AG18: 30.451 | AH18: 1.419
A19: 2022-01-26 | B19: 15.595 | C19: 12.537 | D19: 4.016 | E19: 17.305 | F19: 23.613 | G19: 3.442 | H19: 3.295 | I19: 24.52 | J19: 29.383 | K19: 2.793 | L19: 3.257 | M19: 6.817 | N19: 1.515 | O19: 6.837 | P19: 29.046 | Q19: 16.841 | R19: 19.025 | S19: 1.817 | T19: 1.058 | U19: 5.188 | V19: 2.449 | W19: 14.54 | X19: 42.486 | Y19: 5.347 | Z19: 4.958 | AA19: 27.488 | AB19: 2.346 | AC19: 16.173 | AD19: 65.972 | AE19: 1.607 | AF19: 21.744 | AG19: 30.418 | AH19: 1.435
A20: 2022-01-27 | B20: 15.492 | C20: 12.49 | D20: 4.061 | E20: 17.25 | F20: 23.513 | G20: 3.438 | H20: 3.282 | I20: 24.43 | J20: 29.303 | K20: 2.81 | L20: 3.243 | M20: 6.822 | N20: 1.522 | O20: 6.846 | P20: 29.091 | Q20: 16.825 | R20: 18.977 | S20: 1.817 | T20: 1.056 | U20: 5.215 | V20: 2.445 | W20: 14.48 | X20: 42.639 | Y20: 5.358 | Z20: 4.939 | AA20: 28.037 | AB20: 2.339 | AC20: 16.19 | AD20: 65.802 | AE20: 1.608 | AF20: 21.891 | AG20: 30.641 | AH20: 1.428
A21: 2022-01-28 | B21: 15.301 | C21: 12.493 | D21: 4.065 | E21: 17.164 | F21: 23.545 | G21: 3.451 | H21: 3.283 | I21: 24.435 | J21: 29.377 | K21: 2.815 | L21: 3.245 | M21: 6.815 | N21: 1.525 | O21: 6.845 | P21: 29.23 | Q21: 16.969 | R21: 18.99 | S21: 1.811 | T21: 1.054 | U21: 5.236 | V21: 2.438 | W21: 14.349 | X21: 42.851 | Y21: 5.341 | Z21: 4.94 | AA21: 28.213 | AB21: 2.316 | AC21: 16.175 | AD21: 65.647 | AE21: 1.614 | AF21: 21.94 | AG21: 30.542 | AH21: 1.406
A22: 2022-01-31 | B22: 15.403 | C22: 12.458 | D22: 4.061 | E22: 17.12 | F22: 23.42 | G22: 3.434 | H22: 3.274 | I22: 24.365 | J22: 29.302 | K22: 2.801 | L22: 3.236 | M22: 6.822 | N22: 1.519 | O22: 6.836 | P22: 29.225 | Q22: 17.015 | R22: 18.92 | S22: 1.806 | T22: 1.051 | U22: 5.218 | V22: 2.435 | W22: 14.349 | X22: 42.757 | Y22: 5.309 | Z22: 4.925 | AA22: 28.094 | AB22: 2.324 | AC22: 16.125 | AD22: 65.605 | AE22: 1.631 | AF22: 21.84 | AG22: 30.374 | AH22: 1.402
A23: 2022-02-01 | B23: 15.338 | C23: 12.442 | D23: 4.085 | E23: 17.022 | F23: 23.459 | G23: 3.398 | H23: 3.271 | I23: 24.335 | J23: 29.146 | K23: 2.773 | L23: 3.233 | M23: 6.828 | N23: 1.503 | O23: 6.825 | P23: 28.906 | Q23: 16.923 | R23: 18.85 | S23: 1.798 | T23: 1.052 | U23: 5.164 | V23: 2.442 | W23: 14.291 | X23: 42.316 | Y23: 5.313 | Z23: 4.92 | AA23: 28.201 | AB23: 2.33 | AC23: 16.012 | AD23: 65.108 | AE23: 1.616 | AF23: 21.615 | AG23: 30.083 | AH23: 1.418
A24: 2022-02-02 | B24: 15.355 | C24: 12.423 | D24: 4.075 | E24: 16.953 | F24: 23.358 | G24: 3.372 | H24: 3.267 | I24: 24.3 | J24: 29.138 | K24: 2.752 | L24: 3.229 | M24: 6.856 | N24: 1.494 | O24: 6.789 | P24: 28.705 | Q24: 16.969 | R24: 18.786 | S24: 1.787 | T24: 1.046 | U24: 5.125 | V24: 2.449 | W24: 14.285 | X24: 42.03 | Y24: 5.347 | Z24: 4.913 | AA24: 28.311 | AB24: 2.339 | AC24: 15.924 | AD24: 64.653 | AE24: 1.588 | AF24: 21.449 | AG24: 29.985 | AH24: 1.401
A25: 2022-02-03 | B25: 15.24 | C25: 12.348 | D25: 4.037 | E25: 16.849 | F25: 23.202 | G25: 3.365 | H25: 3.246 | I25: 24.15 | J25: 29.025 | K25: 2.746 | L25: 3.207 | M25: 6.829 | N25: 1.489 | O25: 6.719 | P25: 28.579 | Q25: 16.959 | R25: 18.632 | S25: 1.778 | T25: 1.039 | U25: 5.116 | V25: 2.426 | W25: 14.209 | X25: 41.929 | Y25: 5.33 | Z25: 4.883 | AA25: 28.019 | AB25: 2.325 | AC25: 15.877 | AD25: 64.542 | AE25: 1.578 | AF25: 21.402 | AG25: 29.978 | AH25: 1.397
A26: 2022-02-04 | B26: 15.07 | C26: 12.456 | D26: 4.004 | E26: 16.705 | F26: 23.054 | G26: 3.341 | H26: 3.273 | I26: 24.36 | J26: 28.799 | K26: 2.729 | L26: 3.236 | M26: 6.903 | N26: 1.478 | O26: 6.632 | P26: 28.444 | Q26: 17.059 | R26: 18.494 | S26: 1.773 | T26: 1.033 | U26: 5.085 | V26: 2.424 | W26: 14.094 | X26: 41.465 | Y26: 5.357 | Z26: 4.925 | AA26: 27.9 | AB26: 2.331 | AC26: 15.801 | AD26: 64.447 | AE26: 1.571 | AF26: 21.251 | AG26: 29.734 | AH26: 1.385
A27: 2022-02-07 | B27: 15.06 | C27: 12.393 | D27: 4.006 | E27: 16.668 | F27: 22.935 | G27: 3.332 | H27: 3.256 | I27: 24.24 | J27: 28.631 | K27: 2.718 | L27: 3.223 | M27: 6.858 | N27: 1.471 | O27: 6.631 | P27: 28.351 | Q27: 16.904 | R27: 18.423 | S27: 1.767 | T27: 1.028 | U27: 5.061 | V27: 2.408 | W27: 14.028 | X27: 41.105 | Y27: 5.334 | Z27: 4.9 | AA27: 28.009 | AB27: 2.32 | AC27: 15.754 | AD27: 64.244 | AE27: 1.562 | AF27: 21.18 | AG27: 29.792 | AH27: 1.37
A28: 2022-02-08 | B28: 15.137 | C28: 12.405 | D28: 4.029 | E28: 16.726 | F28: 23.007 | G28: 3.341 | H28: 3.259 | I28: 24.26 | J28: 28.753 | K28: 2.728 | L28: 3.225 | M28: 6.871 | N28: 1.478 | O28: 6.601 | P28: 28.457 | Q28: 17.037 | R28: 18.426 | S28: 1.774 | T28: 1.029 | U28: 5.082 | V28: 2.407 | W28: 14.106 | X28: 41.324 | Y28: 5.354 | Z28: 4.906 | AA28: 28.286 | AB28: 2.323 | AC28: 15.806 | AD28: 64.506 | AE28: 1.56 | AF28: 21.268 | AG28: 29.873 | AH28: 1.376
A29: 2022-02-09 | B29: 15.246 | C29: 12.419 | D29: 4.036 | E29: 16.734 | F29: 23.012 | G29: 3.339 | H29: 3.263 | I29: 24.29 | J29: 28.818 | K29: 2.726 | L29: 3.226 | M29: 6.882 | N29: 1.48 | O29: 6.597 | P29: 28.389 | Q29: 17.082 | R29: 18.398 | S29: 1.779 | T29: 1.034 | U29: 5.077 | V29: 2.415 | W29: 14.198 | X29: 41.454 | Y29: 5.382 | Z29: 4.911 | AA29: 28.403 | AB29: 2.334 | AC29: 15.827 | AD29: 64.948 | AE29: 1.562 | AF29: 21.246 | AG29: 29.821 | AH29: 1.386
A30: 2022-02-10 | B30: 15.319 | C30: 12.449 | D30: 4.081 | E30: 16.794 | F30: 23.034 | G30: 3.35 | H30: 3.273 | I30: 24.35 | J30: 28.903 | K30: 2.731 | L30: 3.234 | M30: 6.878 | N30: 1.484 | O30: 6.617 | P30: 28.335 | Q30: 17.172 | R30: 18.389 | S30: 1.781 | T30: 1.042 | U30: 5.088 | V30: 2.418 | W30: 14.259 | X30: 41.563 | Y30: 5.42 | Z30: 4.924 | AA30: 28.641 | AB30: 2.313 | AC30: 15.867 | AD30: 65.217 | AE30: 1.573 | AF30: 21.286 | AG30: 29.886 | AH30: 1.407
A31: 2022-02-11 | B31: 15.325 | C31: 12.477 | D31: 4.12 | E31: 16.834 | F31: 23.116 | G31: 3.364 | H31: 3.28 | I31: 24.405 | J31: 29.068 | K31: 2.741 | L31: 3.241 | M31: 6.907 | N31: 1.49 | O31: 6.604 | P31: 28.429 | Q31: 17.211 | R31: 18.454 | S31: 1.79 | T31: 1.047 | U31: 5.103 | V31: 2.422 | W31: 14.285 | X31: 41.734 | Y31: 5.397 | Z31: 4.935 | AA31: 28.412 | AB31: 2.313 | AC31: 15.911 | AD31: 65.459 | AE31: 1.585 | AF31: 21.378 | AG31: 30.013 | AH31: 1.412
A32: 2022-02-14 | B32: 15.428 | C32: 12.543 | D32: 4.161 | E32: 16.999 | F32: 23.427 | G32: 3.412 | H32: 3.297 | I32: 24.535 | J32: 29.305 | K32: 2.778 | L32: 3.259 | M32: 6.867 | N32: 1.513 | O32: 6.658 | P32: 28.698 | Q32: 17.205 | R32: 18.781 | S32: 1.811 | T32: 1.06 | U32: 5.173 | V32: 2.438 | W32: 14.334 | X32: 42.207 | Y32: 5.404 | Z32: 4.96 | AA32: 28.425 | AB32: 2.312 | AC32: 16.089 | AD32: 66.716 | AE32: 1.598 | AF32: 21.676 | AG32: 30.396 | AH32: 1.431
A33: 2022-02-15 | B33: 15.37 | C33: 12.485 | D33: 4.141 | E33: 16.92 | F33: 23.294 | G33: 3.394 | H33: 3.281 | I33: 24.42 | J33: 29.153 | K33: 2.759 | L33: 3.243 | M33: 6.873 | N33: 1.505 | O33: 6.673 | P33: 28.582 | Q33: 17.295 | R33: 18.615 | S33: 1.799 | T33: 1.056 | U33: 5.142 | V33: 2.42 | W33: 14.246 | X33: 42.004 | Y33: 5.421 | Z33: 4.942 | AA33: 28.557 | AB33: 2.309 | AC33: 16 | AD33: 66.564 | AE33: 1.579 | AF33: 21.527 | AG33: 30.122 | AH33: 1.422
A34: 2022-02-16 | B34: 15.362 | C34: 12.456 | D34: 4.146 | E34: 16.901 | F34: 23.168 | G34: 3.38 | H34: 3.274 | I34: 24.365 | J34: 29.022 | K34: 2.747 | L34: 3.236 | M34: 6.851 | N34: 1.503 | O34: 6.721 | P34: 28.536 | Q34: 17.231 | R34: 18.516 | S34: 1.79 | T34: 1.051 | U34: 5.119 | V34: 2.41 | W34: 14.241 | X34: 41.759 | Y34: 5.419 | Z34: 4.928 | AA34: 28.537 | AB34: 2.313 | AC34: 15.934 | AD34: 66.263 | AE34: 1.575 | AF34: 21.425 | AG34: 30.014 | AH34: 1.415
A35: 2022-02-17 | B35: 15.442 | C35: 12.465 | D35: 4.168 | E35: 16.881 | F35: 23.294 | G35: 3.384 | H35: 3.277 | I35: 24.38 | J35: 29.202 | K35: 2.749 | L35: 3.236 | M35: 6.847 | N35: 1.498 | O35: 6.729 | P35: 28.586 | Q35: 17.218 | R35: 18.636 | S35: 1.792 | T35: 1.058 | U35: 5.121 | V35: 2.408 | W35: 14.383 | X35: 41.811 | Y35: 5.41 | Z35: 4.932 | AA35: 28.214 | AB35: 2.301 | AC35: 15.958 | AD35: 66.738 | AE35: 1.574 | AF35: 21.444 | AG35: 30.081 | AH35: 1.435

Sheet List1 (hidden)
H1: 2022-01-01 | P1: počet dní | AB1: =Příkaz!F14 -> 00:00:00 | AC1: =VLOOKUP(VLOOKUP(AB1,AB3:AD569,3,FALSE)+10,AA3:AB569,2,FALSE) -> 
A2: 1 | H2: 2022-12-31 | K2: ano | L2: JE | N2: ZO PF UK | P2: =Příkaz!F14-Příkaz!F6+1 -> 1 | Q2: =VALUE(RIGHT(P2,1)) -> 1 | R2: =P2&" "&VLOOKUP(Q2,P6:Q15,2,FALSE) -> 1 den | V2: Země | W2: Měnový kód | X2: Měna | Y2: Základní sazby zahraničního stravného | AB2: datum | AC2: body
A3: 2 | B3: V | C3: Vlak | K3: ne | L3: NENÍ | N3: jinak | R3: CZK | S3: CZK | T3: 0 | U3: 1 | V3: Afghánistán | W3: EUR | X3: euro | Y3: 45 | AA3: 0 | AB3: 2022-01-01 | AC3: 0
A4: 3 | B4: A | C4: Autobus | I4: CZK | R4: EUR | S4: AUD | T4: 2 | U4: 1 | V4: Albánie | W4: EUR | X4: euro | Y4: 40 | AA4: =AA3+AC4 -> 0 | AB4: 2022-01-02 | AC4: 0 | AD4: =AA3+AC4 -> 0
A5: 4 | B5: L | C5: Letadlo | I5: EUR | K5: Ne | R5: GBP | S5: BGN | T5: 3 | U5: 1 | V5: Alžírsko | W5: EUR | X5: euro | Y5: 50 | AA5: 1 | AB5: 2022-01-03 | AC5: 1 | AD5: =AA4+AC5 -> 1
A6: 5 | B6: SV | C6: Služební silniční vozidlo | I6: USD | K6: Ano, v hotovosti | N6: ZO PF UK | P6: 0 | Q6: dní | R6: PLN | S6: BRL | T6: 4 | U6: 1 | V6: Andorra | W6: EUR | X6: euro | Y6: 45 | AA6: 2 | AB6: 2022-01-04 | AC6: 1 | AD6: 2
A7: 6 | B7: SJ | C7: Spolujízda | I7: GBP | K7: Ano, na bank. účet | N7: vyjíždějící | P7: 1 | Q7: den | R7: USD | S7: CAD | T7: 5 | U7: 1 | V7: Angola | W7: USD | X7: americký dolar | Y7: 60 | AA7: 3 | AB7: 2022-01-05 | AC7: 1 | AD7: 3
A8: 7 | B8: VV | C8: Vlastní silniční vozidlo - náhrada za každý km jízdy | I8: AUD | P8: 2 | Q8: dny | S8: CHF | T8: 6 | U8: 1 | V8: Argentina | W8: USD | X8: americký dolar | Y8: 50 | AA8: 4 | AB8: 2022-01-06 | AC8: 1 | AD8: 4
A9: 8 | B9: V - VV | C9: Vlastní vozidlo s náhradou výdajů za vlak | I9: BRL | P9: 3 | Q9: dny | S9: CNY | T9: 7 | U9: 1 | V9: Arménie | W9: EUR | X9: euro | Y9: 35 | AA9: 5 | AB9: 2022-01-07 | AC9: 1 | AD9: 5
A10: 9 | B10: A - VV | C10: Vlastní vozidlo s náhradou výdajů za autobus | I10: BGN | P10: 4 | Q10: dny | S10: DKK | T10: 8 | U10: 1 | V10: Austrálie a Oceánie – ostrovní státy1) | W10: USD | X10: americký dolar | Y10: 60 | AA10: 5 | AB10: 2022-01-08 | AC10: 0 | AD10: 5
A11: 10 | B11: L - VV | C11: Vlastní vozidlo s náhradou výdajů za letadlo | I11: CNY | P11: 5 | Q11: dní | S11: EUR | T11: 9 | U11: 1 | V11: Ázerbájdžán | W11: EUR | X11: euro | Y11: 40 | AA11: 5 | AB11: 2022-01-09 | AC11: 0 | AD11: 5
A12: 11 | I12: DKK | P12: 6 | Q12: dní | S12: GBP | T12: 10 | U12: 1 | V12: Bahamy | W12: USD | X12: americký dolar | Y12: 55 | AA12: 6 | AB12: 2022-01-10 | AC12: 1 | AD12: 6
A13: 12 | B13: S | I13: PHP | P13: 7 | Q13: dní | S13: HKD | T13: 11 | U13: 1 | V13: Bahrajn | W13: EUR | X13: euro | Y13: 45 | AA13: 7 | AB13: 2022-01-11 | AC13: 1 | AD13: 7
A14: 13 | B14: O | I14: HKD | P14: 8 | Q14: dní | S14: HRK | T14: 12 | U14: 1 | V14: Bangladéš | W14: USD | X14: americký dolar | Y14: 50 | AA14: 8 | AB14: 2022-01-12 | AC14: 1 | AD14: 8
A15: 14 | B15: V | I15: HRK | P15: 9 | Q15: dní | S15: HUF | T15: 13 | U15: 100 | V15: Belgie | W15: EUR | X15: euro | Y15: 50 | AA15: 9 | AB15: 2022-01-13 | AC15: 1 | AD15: 9
A16: 15 | B16: SO | I16: INR | S16: IDR | T16: 14 | U16: 1000 | V16: Belize | W16: USD | X16: americký dolar | Y16: 50 | AA16: 10 | AB16: 2022-01-14 | AC16: 1 | AD16: 10
A17: 16 | B17: SV | I17: IDR | S17: ILS | T17: 15 | U17: 1 | V17: Benin | W17: EUR | X17: euro | Y17: 45 | AA17: 10 | AB17: 2022-01-15 | AC17: 0 | AD17: 10
A18: 17 | B18: OV | I18: ISK | S18: INR | T18: 16 | U18: 100 | V18: Bermudy | W18: USD | X18: americký dolar | Y18: 50 | AA18: 10 | AB18: 2022-01-16 | AC18: 0 | AD18: 10
A19: 18 | B19: SOV | I19: ILS | S19: ISK | T19: 17 | U19: 100 | V19: Bělorusko | W19: EUR | X19: euro | Y19: 45 | AA19: 11 | AB19: 2022-01-17 | AC19: 1 | AD19: 11
A20: 19 | I20: JPY | S20: JPY | T20: 18 | U20: 100 | V20: Bhútán | W20: USD | X20: americký dolar | Y20: 50 | AA20: 12 | AB20: 2022-01-18 | AC20: 1 | AD20: 12
A21: 20 | I21: ZAR | S21: KRW | T21: 19 | U21: 100 | V21: Bolívie | W21: USD | X21: americký dolar | Y21: 50 | AA21: 13 | AB21: 2022-01-19 | AC21: 1 | AD21: 13
A22: 21 | B22: 110 | C22: Z | D22: 1 | I22: CAD | S22: MXN | T22: 20 | U22: 1 | V22: Bosna a Hercegovina | W22: EUR | X22: euro | Y22: 40 | AA22: 14 | AB22: 2022-01-20 | AC22: 1 | AD22: 14
A23: 22 | B23: 1010 | C23: P | D23: 2 | I23: KRW | S23: MYR | T23: 21 | U23: 1 | V23: Botswana | W23: USD | X23: americký dolar | Y23: 55 | AA23: 15 | AB23: 2022-01-21 | AC23: 1 | AD23: 15
A24: 23 | B24: 1001 | C24: K | D24: 3 | I24: HUF | S24: NOK | T24: 22 | U24: 1 | V24: Brazílie | W24: USD | X24: americký dolar | Y24: 55 | AA24: 15 | AB24: 2022-01-22 | AC24: 0 | AD24: 15
A25: 24 | B25: 101 | C25: S | D25: 4 | I25: MYR | S25: NZD | T25: 23 | U25: 1 | V25: Brunej | W25: USD | X25: americký dolar | Y25: 40 | AA25: 15 | AB25: 2022-01-23 | AC25: 0 | AD25: 15
A26: 25 | B26: 0 | C26: 0 | D26: 5 | I26: MXN | S26: PHP | T26: 24 | U26: 100 | V26: Bulharsko | W26: EUR | X26: euro | Y26: 40 | AA26: 16 | AB26: 2022-01-24 | AC26: 1 | AD26: 16
A27: 26 | I27: XDR | S27: PLN | T27: 25 | U27: 1 | V27: Burkina Faso | W27: EUR | X27: euro | Y27: 40 | AA27: 17 | AB27: 2022-01-25 | AC27: 1 | AD27: 17
A28: 27 | I28: NOK | S28: RON | T28: 26 | U28: 1 | V28: Burundi | W28: USD | X28: americký dolar | Y28: 55 | AA28: 18 | AB28: 2022-01-26 | AC28: 1 | AD28: 18
A29: 28 | I29: NZD | S29: RUB | T29: 27 | U29: 100 | V29: Čad | W29: EUR | X29: euro | Y29: 50 | AA29: 19 | AB29: 2022-01-27 | AC29: 1 | AD29: 19
A30: 29 | I30: PLN | S30: SEK | T30: 28 | U30: 1 | V30: Černá Hora | W30: EUR | X30: euro | Y30: 35 | AA30: 20 | AB30: 2022-01-28 | AC30: 1 | AD30: 20
A31: 30 | I31: RON | S31: SGD | T31: 29 | U31: 1 | V31: Čína | W31: EUR | X31: euro | Y31: 45 | AA31: 20 | AB31: 2022-01-29 | AC31: 0 | AD31: 20
A32: 31 | I32: RUB | S32: THB | T32: 30 | U32: 100 | V32: Dánsko | W32: EUR | X32: euro | Y32: 55 | AA32: 20 | AB32: 2022-01-30 | AC32: 0 | AD32: 20
A33: 32 | I33: SGD | S33: TRY | T33: 31 | U33: 1 | V33: Džibutsko | W33: USD | X33: americký dolar | Y33: 65 | AA33: 21 | AB33: 2022-01-31 | AC33: 1 | AD33: 21
A34: 33 | I34: SEK | S34: USD | T34: 32 | U34: 1 | V34: Egypt | W34: EUR | X34: euro | Y34: 35 | AA34: 22 | AB34: 2022-02-01 | AC34: 1 | AD34: 22
A35: 34 | I35: CHF | S35: XDR | T35: 33 | U35: 1 | V35: Ekvádor | W35: USD | X35: americký dolar | Y35: 50 | AA35: 23 | AB35: 2022-02-02 | AC35: 1 | AD35: 23
A36: 35 | I36: THB | S36: ZAR | T36: 34 | U36: 1 | V36: Eritrea | W36: USD | X36: americký dolar | Y36: 50 | AA36: 24 | AB36: 2022-02-03 | AC36: 1 | AD36: 24
A37: 36 | I37: TRY | T37: =RIGHT(S37,3) ->  | V37: Estonsko | W37: EUR | X37: euro | Y37: 40 | AA37: 25 | AB37: 2022-02-04 | AC37: 1 | AD37: 25
A38: 37 | V38: Etiopie | W38: EUR | X38: euro | Y38: 50 | AA38: 25 | AB38: 2022-02-05 | AC38: 0 | AD38: 25
A39: 38 | V39: Filipíny | W39: EUR | X39: euro | Y39: 40 | AA39: 25 | AB39: 2022-02-06 | AC39: 0 | AD39: 25
A40: 39 | V40: Finsko | W40: EUR | X40: euro | Y40: 50 | AA40: 26 | AB40: 2022-02-07 | AC40: 1 | AD40: 26
A41: 40 | V41: Francie | W41: EUR | X41: euro | Y41: 50 | AA41: 27 | AB41: 2022-02-08 | AC41: 1 | AD41: 27
A42: 41 | V42: Francouzská Guyana | W42: EUR | X42: euro | Y42: 45 | AA42: 28 | AB42: 2022-02-09 | AC42: 1 | AD42: 28
A43: 42 | V43: Gabon | W43: EUR | X43: euro | Y43: 50 | AA43: 29 | AB43: 2022-02-10 | AC43: 1 | AD43: 29
A44: 43 | V44: Gambie | W44: EUR | X44: euro | Y44: 45 | AA44: 30 | AB44: 2022-02-11 | AC44: 1 | AD44: 30
A45: 44 | V45: Ghana | W45: EUR | X45: euro | Y45: 50 | AA45: 30 | AB45: 2022-02-12 | AC45: 0 | AD45: 30
A46: 45 | V46: Gibraltar | W46: EUR | X46: euro | Y46: 40 | AA46: 30 | AB46: 2022-02-13 | AC46: 0 | AD46: 30
A47: 46 | V47: Gruzie | W47: EUR | X47: euro | Y47: 40 | AA47: 31 | AB47: 2022-02-14 | AC47: 1 | AD47: 31
A48: 47 | V48: Guatemala | W48: USD | X48: americký dolar | Y48: 45 | AA48: 32 | AB48: 2022-02-15 | AC48: 1 | AD48: 32
A49: 48 | V49: Guinea | W49: EUR | X49: euro | Y49: 45 | AA49: 33 | AB49: 2022-02-16 | AC49: 1 | AD49: 33
A50: 49 | V50: Guinea-Bissau | W50: EUR | X50: euro | Y50: 45 | AA50: 34 | AB50: 2022-02-17 | AC50: 1 | AD50: 34
A51: 50 | V51: Guyana | W51: USD | X51: americký dolar | Y51: 50 | AA51: 35 | AB51: 2022-02-18 | AC51: 1 | AD51: 35
A52: 51 | V52: Honduras | W52: USD | X52: americký dolar | Y52: 45 | AA52: 35 | AB52: 2022-02-19 | AC52: 0 | AD52: 35
A53: 52 | V53: Hongkong | W53: EUR | X53: euro | Y53: 45 | AA53: 35 | AB53: 2022-02-20 | AC53: 0 | AD53: 35
A54: 53 | V54: Chile | W54: USD | X54: americký dolar | Y54: 55 | AA54: 36 | AB54: 2022-02-21 | AC54: 1 | AD54: 36
A55: 54 | V55: Chorvatsko | W55: EUR | X55: euro | Y55: 40 | AA55: 37 | AB55: 2022-02-22 | AC55: 1 | AD55: 37
A56: 55 | V56: Indie | W56: EUR | X56: euro | Y56: 45 | AA56: 38 | AB56: 2022-02-23 | AC56: 1 | AD56: 38
A57: 56 | V57: Indonésie | W57: EUR | X57: euro | Y57: 40 | AA57: 39 | AB57: 2022-02-24 | AC57: 1 | AD57: 39
A58: 57 | V58: Irák | W58: EUR | X58: euro | Y58: 40 | AA58: 40 | AB58: 2022-02-25 | AC58: 1 | AD58: 40
A59: 58 | V59: Írán | W59: EUR | X59: euro | Y59: 40 | AA59: 40 | AB59: 2022-02-26 | AC59: 0 | AD59: 40
A60: 59 | V60: Irsko | W60: EUR | X60: euro | Y60: 50 | AA60: 40 | AB60: 2022-02-27 | AC60: 0 | AD60: 40
A61: 60 | V61: Island | W61: EUR | X61: euro | Y61: 60 | AA61: 41 | AB61: 2022-02-28 | AC61: 1 | AD61: 41
A62: 61 | V62: Itálie, Vatikán a San Marino | W62: EUR | X62: euro | Y62: 50 | AA62: 42 | AB62: 2022-03-01 | AC62: 1 | AD62: 42
V63: Izrael | W63: USD | X63: americký dolar | Y63: 55 | AA63: 43 | AB63: 2022-03-02 | AC63: 1 | AD63: 43
V64: Japonsko | W64: USD | X64: americký dolar | Y64: 65 | AA64: 44 | AB64: 2022-03-03 | AC64: 1 | AD64: 44
V65: Jemen | W65: EUR | X65: euro | Y65: 35 | AA65: 45 | AB65: 2022-03-04 | AC65: 1 | AD65: 45
V66: Jihoafrická republika | W66: EUR | X66: euro | Y66: 40 | AA66: 45 | AB66: 2022-03-05 | AC66: 0 | AD66: 45
V67: Jižní Súdán | W67: USD | X67: americký dolar | Y67: 55 | AA67: 45 | AB67: 2022-03-06 | AC67: 0 | AD67: 45
V68: Jordánsko | W68: EUR | X68: euro | Y68: 45 | AA68: =AA67+AC68 -> 46 | AB68: 2022-03-07 | AC68: 1 | AD68: 46
T69: =RIGHT(S69,3) ->  | V69: Kambodža | W69: USD | X69: americký dolar | Y69: 45 | AA69: 47 | AB69: 2022-03-08 | AC69: 1 | AD69: =AA68+AC69 -> 47
V70: Kamerun | W70: EUR | X70: euro | Y70: 50 | AA70: 48 | AB70: 2022-03-09 | AC70: 1 | AD70: 48
V71: Kanada | W71: USD | X71: americký dolar | Y71: 50 | AA71: 49 | AB71: 2022-03-10 | AC71: 1 | AD71: 49
V72: Kapverdy | W72: EUR | X72: euro | Y72: 40 | AA72: 50 | AB72: 2022-03-11 | AC72: 1 | AD72: 50
V73: Karibik – ostrovní státy2) | W73: USD | X73: americký dolar | Y73: 55 | AA73: 50 | AB73: 2022-03-12 | AC73: 0 | AD73: 50
V74: Katar | W74: USD | X74: americký dolar | Y74: 50 | AA74: 50 | AB74: 2022-03-13 | AC74: 0 | AD74: 50
V75: Kazachstán | W75: EUR | X75: euro | Y75: 45 | AA75: 51 | AB75: 2022-03-14 | AC75: 1 | AD75: 51
V76: Keňa | W76: EUR | X76: euro | Y76: 45 | AA76: 52 | AB76: 2022-03-15 | AC76: 1 | AD76: 52
V77: Kolumbie | W77: USD | X77: americký dolar | Y77: 45 | AA77: 53 | AB77: 2022-03-16 | AC77: 1 | AD77: 53
V78: Komory | W78: USD | X78: americký dolar | Y78: 55 | AA78: 54 | AB78: 2022-03-17 | AC78: 1 | AD78: 54
V79: Konžská republika (Brazzaville) | W79: USD | X79: americký dolar | Y79: 60 | AA79: 55 | AB79: 2022-03-18 | AC79: 1 | AD79: 55
V80: Konžská demokratická republika (Kinshasa) | W80: USD | X80: americký dolar | Y80: 65 | AA80: 55 | AB80: 2022-03-19 | AC80: 0 | AD80: 55
V81: Korejská lidově demokratická republika | W81: EUR | X81: euro | Y81: 45 | AA81: 55 | AB81: 2022-03-20 | AC81: 0 | AD81: 55
V82: Korejská republika | W82: EUR | X82: euro | Y82: 50 | AA82: 56 | AB82: 2022-03-21 | AC82: 1 | AD82: 56
V83: Kosovo | W83: EUR | X83: euro | Y83: 45 | AA83: 57 | AB83: 2022-03-22 | AC83: 1 | AD83: 57
V84: Kostarika | W84: USD | X84: americký dolar | Y84: 50 | AA84: 58 | AB84: 2022-03-23 | AC84: 1 | AD84: 58
V85: Kuba | W85: EUR | X85: euro | Y85: 55 | AA85: 59 | AB85: 2022-03-24 | AC85: 1 | AD85: 59
V86: Kuvajt | W86: EUR | X86: euro | Y86: 40 | AA86: 60 | AB86: 2022-03-25 | AC86: 1 | AD86: 60
V87: Kypr | W87: EUR | X87: euro | Y87: 40 | AA87: 60 | AB87: 2022-03-26 | AC87: 0 | AD87: 60
V88: Kyrgyzstán | W88: EUR | X88: euro | Y88: 40 | AA88: 60 | AB88: 2022-03-27 | AC88: 0 | AD88: 60
V89: Laos | W89: USD | X89: americký dolar | Y89: 45 | AA89: 61 | AB89: 2022-03-28 | AC89: 1 | AD89: 61
V90: Lesotho | W90: USD | X90: americký dolar | Y90: 50 | AA90: 62 | AB90: 2022-03-29 | AC90: 1 | AD90: 62
V91: Libanon | W91: USD | X91: americký dolar | Y91: 55 | AA91: 63 | AB91: 2022-03-30 | AC91: 1 | AD91: 63
V92: Libérie | W92: EUR | X92: euro | Y92: 45 | AA92: 64 | AB92: 2022-03-31 | AC92: 1 | AD92: 64
V93: Libye | W93: EUR | X93: euro | Y93: 45 | AA93: 65 | AB93: 2022-04-01 | AC93: 1 | AD93: 65
V94: Lichtenštejnsko | W94: CHF | X94: švýcarský frank | Y94: 65 | AA94: 65 | AB94: 2022-04-02 | AC94: 0 | AD94: 65
V95: Litva | W95: EUR | X95: euro | Y95: 40 | AA95: 65 | AB95: 2022-04-03 | AC95: 0 | AD95: 65
V96: Lotyšsko | W96: EUR | X96: euro | Y96: 40 | AA96: 66 | AB96: 2022-04-04 | AC96: 1 | AD96: 66
V97: Lucembursko | W97: EUR | X97: euro | Y97: 50 | AA97: 67 | AB97: 2022-04-05 | AC97: 1 | AD97: 67
V98: Macao | W98: EUR | X98: euro | Y98: 45 | AA98: 68 | AB98: 2022-04-06 | AC98: 1 | AD98: 68
V99: Madagaskar | W99: EUR | X99: euro | Y99: 40 | AA99: 69 | AB99: 2022-04-07 | AC99: 1 | AD99: 69
V100: Maďarsko | W100: EUR | X100: euro | Y100: 40 | AA100: 70 | AB100: 2022-04-08 | AC100: 1 | AD100: 70
V101: Malajsie | W101: USD | X101: americký dolar | Y101: 45 | AA101: 70 | AB101: 2022-04-09 | AC101: 0 | AD101: 70
V102: Malawi | W102: USD | X102: americký dolar | Y102: 45 | AA102: 70 | AB102: 2022-04-10 | AC102: 0 | AD102: 70
V103: Maledivy | W103: USD | X103: americký dolar | Y103: 55 | AA103: 71 | AB103: 2022-04-11 | AC103: 1 | AD103: 71
V104: Mali | W104: EUR | X104: euro | Y104: 45 | AA104: 72 | AB104: 2022-04-12 | AC104: 1 | AD104: 72
V105: Malta | W105: EUR | X105: euro | Y105: 50 | AA105: 73 | AB105: 2022-04-13 | AC105: 1 | AD105: 73
V106: Maroko | W106: EUR | X106: euro | Y106: 40 | AA106: 74 | AB106: 2022-04-14 | AC106: 1 | AD106: 74
V107: Mauretánie | W107: EUR | X107: euro | Y107: 40 | AA107: 74 | AB107: 2022-04-15 | AC107: 0 | AD107: 74
V108: Mauricius | W108: USD | X108: americký dolar | Y108: 55 | AA108: 74 | AB108: 2022-04-16 | AC108: 0 | AD108: 74
V109: Mexiko | W109: USD | X109: americký dolar | Y109: 50 | AA109: 74 | AB109: 2022-04-17 | AC109: 0 | AD109: 74
V110: Moldavsko | W110: EUR | X110: euro | Y110: 40 | AA110: 74 | AB110: 2022-04-18 | AC110: 0 | AD110: 74
V111: Monako | W111: EUR | X111: euro | Y111: 45 | AA111: 75 | AB111: 2022-04-19 | AC111: 1 | AD111: 75
V112: Mongolsko | W112: EUR | X112: euro | Y112: 40 | AA112: 76 | AB112: 2022-04-20 | AC112: 1 | AD112: 76
V113: Mosambik | W113: USD | X113: americký dolar | Y113: 50 | AA113: 77 | AB113: 2022-04-21 | AC113: 1 | AD113: 77
V114: Myanmar (Barma) | W114: USD | X114: americký dolar | Y114: 50 | AA114: 78 | AB114: 2022-04-22 | AC114: 1 | AD114: 78
V115: Namibie | W115: USD | X115: americký dolar | Y115: 50 | AA115: 78 | AB115: 2022-04-23 | AC115: 0 | AD115: 78
V116: Německo | W116: EUR | X116: euro | Y116: 45 | AA116: 78 | AB116: 2022-04-24 | AC116: 0 | AD116: 78
V117: Nepál | W117: USD | X117: americký dolar | Y117: 50 | AA117: 79 | AB117: 2022-04-25 | AC117: 1 | AD117: 79
V118: Niger | W118: EUR | X118: euro | Y118: 50 | AA118: 80 | AB118: 2022-04-26 | AC118: 1 | AD118: 80
V119: Nigérie | W119: EUR | X119: euro | Y119: 50 | AA119: 81 | AB119: 2022-04-27 | AC119: 1 | AD119: 81
V120: Nikaragua | W120: USD | X120: americký dolar | Y120: 45 | AA120: 82 | AB120: 2022-04-28 | AC120: 1 | AD120: 82
V121: Nizozemsko | W121: EUR | X121: euro | Y121: 50 | AA121: 83 | AB121: 2022-04-29 | AC121: 1 | AD121: 83
V122: Norsko | W122: EUR | X122: euro | Y122: 60 | AA122: 83 | AB122: 2022-04-30 | AC122: 0 | AD122: 83
V123: Nový Zéland | W123: USD | X123: americký dolar | Y123: 60 | AA123: 83 | AB123: 2022-05-01 | AC123: 0 | AD123: 83
V124: Omán | W124: EUR | X124: euro | Y124: 50 | AA124: 84 | AB124: 2022-05-02 | AC124: 1 | AD124: 84
V125: Pákistán | W125: EUR | X125: euro | Y125: 40 | AA125: 85 | AB125: 2022-05-03 | AC125: 1 | AD125: 85
V126: Panama | W126: USD | X126: americký dolar | Y126: 45 | AA126: 86 | AB126: 2022-05-04 | AC126: 1 | AD126: 86
V127: Paraguay | W127: USD | X127: americký dolar | Y127: 45 | AA127: 87 | AB127: 2022-05-05 | AC127: 1 | AD127: 87
V128: Peru | W128: USD | X128: americký dolar | Y128: 50 | AA128: 88 | AB128: 2022-05-06 | AC128: 1 | AD128: 88
V129: Pobřeží Slonoviny | W129: EUR | X129: euro | Y129: 40 | AA129: 88 | AB129: 2022-05-07 | AC129: 0 | AD129: 88
V130: Polsko | W130: EUR | X130: euro | Y130: 40 | AA130: 88 | AB130: 2022-05-08 | AC130: 0 | AD130: 88
V131: Portugalsko a Azory | W131: EUR | X131: euro | Y131: 40 | AA131: 89 | AB131: 2022-05-09 | AC131: 1 | AD131: 89
V132: Rakousko | W132: EUR | X132: euro | Y132: 45 | AA132: =AA131+AC132 -> 90 | AB132: 2022-05-10 | AC132: 1 | AD132: 90
T133: =RIGHT(S133,3) ->  | V133: Rovníková Guinea | W133: EUR | X133: euro | Y133: 50 | AA133: 91 | AB133: 2022-05-11 | AC133: 1 | AD133: =AA132+AC133 -> 91
V134: Rumunsko | W134: EUR | X134: euro | Y134: 40 | AA134: 92 | AB134: 2022-05-12 | AC134: 1 | AD134: 92
V135: Rusko | W135: EUR | X135: euro | Y135: 45 | AA135: 93 | AB135: 2022-05-13 | AC135: 1 | AD135: 93
V136: Rwanda | W136: USD | X136: americký dolar | Y136: 55 | AA136: 93 | AB136: 2022-05-14 | AC136: 0 | AD136: 93
V137: Řecko | W137: EUR | X137: euro | Y137: 40 | AA137: 93 | AB137: 2022-05-15 | AC137: 0 | AD137: 93
V138: Salvador | W138: USD | X138: americký dolar | Y138: 45 | AA138: 94 | AB138: 2022-05-16 | AC138: 1 | AD138: 94
V139: Saúdská Arábie | W139: EUR | X139: euro | Y139: 50 | AA139: 95 | AB139: 2022-05-17 | AC139: 1 | AD139: 95
V140: Senegal | W140: EUR | X140: euro | Y140: 50 | AA140: 96 | AB140: 2022-05-18 | AC140: 1 | AD140: 96
V141: Severní Makedonie | W141: EUR | X141: euro | Y141: 35 | AA141: 97 | AB141: 2022-05-19 | AC141: 1 | AD141: 97
V142: Seychely | W142: EUR | X142: euro | Y142: 55 | AA142: 98 | AB142: 2022-05-20 | AC142: 1 | AD142: 98
V143: Sierra Leone | W143: EUR | X143: euro | Y143: 40 | AA143: 98 | AB143: 2022-05-21 | AC143: 0 | AD143: 98
V144: Singapur | W144: USD | X144: americký dolar | Y144: 60 | AA144: 98 | AB144: 2022-05-22 | AC144: 0 | AD144: 98
V145: Spojené arabské emiráty | W145: USD | X145: americký dolar | Y145: 55 | AA145: 99 | AB145: 2022-05-23 | AC145: 1 | AD145: 99
V146: Slovensko | W146: EUR | X146: euro | Y146: 35 | AA146: 100 | AB146: 2022-05-24 | AC146: 1 | AD146: 100
V147: Slovinsko | W147: EUR | X147: euro | Y147: 40 | AA147: 101 | AB147: 2022-05-25 | AC147: 1 | AD147: 101
V148: Somálsko | W148: USD | X148: americký dolar | Y148: 55 | AA148: 102 | AB148: 2022-05-26 | AC148: 1 | AD148: 102
V149: Spojené státy americké | W149: USD | X149: americký dolar | Y149: 60 | AA149: 103 | AB149: 2022-05-27 | AC149: 1 | AD149: 103
V150: Srbsko | W150: EUR | X150: euro | Y150: 35 | AA150: 103 | AB150: 2022-05-28 | AC150: 0 | AD150: 103
V151: Srí Lanka | W151: USD | X151: americký dolar | Y151: 50 | AA151: 103 | AB151: 2022-05-29 | AC151: 0 | AD151: 103
V152: Středoafrická republika | W152: USD | X152: americký dolar | Y152: 50 | AA152: 104 | AB152: 2022-05-30 | AC152: 1 | AD152: 104
V153: Súdán | W153: USD | X153: americký dolar | Y153: 55 | AA153: 105 | AB153: 2022-05-31 | AC153: 1 | AD153: 105
V154: Surinam | W154: USD | X154: americký dolar | Y154: 50 | AA154: 106 | AB154: 2022-06-01 | AC154: 1 | AD154: 106
V155: Svatý Tomáš a Princův ostrov | W155: EUR | X155: euro | Y155: 40 | AA155: 107 | AB155: 2022-06-02 | AC155: 1 | AD155: 107
V156: Svazijsko | W156: USD | X156: americký dolar | Y156: 55 | AA156: 108 | AB156: 2022-06-03 | AC156: 1 | AD156: 108
V157: Sýrie | W157: EUR | X157: euro | Y157: 50 | AA157: 108 | AB157: 2022-06-04 | AC157: 0 | AD157: 108
V158: Španělsko | W158: EUR | X158: euro | Y158: 45 | AA158: 108 | AB158: 2022-06-05 | AC158: 0 | AD158: 108
V159: Švédsko | W159: EUR | X159: euro | Y159: 55 | AA159: 109 | AB159: 2022-06-06 | AC159: 1 | AD159: 109
V160: Švýcarsko | W160: CHF | X160: švýcarský frank | Y160: 75 | AA160: 110 | AB160: 2022-06-07 | AC160: 1 | AD160: 110
V161: Tádžikistán | W161: EUR | X161: euro | Y161: 40 | AA161: 111 | AB161: 2022-06-08 | AC161: 1 | AD161: 111
V162: Tanzanie | W162: USD | X162: americký dolar | Y162: 55 | AA162: 112 | AB162: 2022-06-09 | AC162: 1 | AD162: 112
V163: Thajsko | W163: EUR | X163: euro | Y163: 40 | AA163: 113 | AB163: 2022-06-10 | AC163: 1 | AD163: 113
V164: Tchaj-wan | W164: EUR | X164: euro | Y164: 45 | AA164: 113 | AB164: 2022-06-11 | AC164: 0 | AD164: 113
V165: Togo | W165: EUR | X165: euro | Y165: 40 | AA165: 113 | AB165: 2022-06-12 | AC165: 0 | AD165: 113
V166: Tunisko | W166: EUR | X166: euro | Y166: 45 | AA166: 114 | AB166: 2022-06-13 | AC166: 1 | AD166: 114
V167: Turecko | W167: EUR | X167: euro | Y167: 40 | AA167: 115 | AB167: 2022-06-14 | AC167: 1 | AD167: 115
V168: Turkmenistán | W168: EUR | X168: euro | Y168: 45 | AA168: 116 | AB168: 2022-06-15 | AC168: 1 | AD168: 116
V169: Uganda | W169: USD | X169: americký dolar | Y169: 55 | AA169: 117 | AB169: 2022-06-16 | AC169: 1 | AD169: 117
V170: Ukrajina | W170: EUR | X170: euro | Y170: 45 | AA170: 118 | AB170: 2022-06-17 | AC170: 1 | AD170: 118
V171: Uruguay | W171: USD | X171: americký dolar | Y171: 50 | AA171: 118 | AB171: 2022-06-18 | AC171: 0 | AD171: 118
V172: Uzbekistán | W172: EUR | X172: euro | Y172: 40 | AA172: 118 | AB172: 2022-06-19 | AC172: 0 | AD172: 118
V173: Velká Británie | W173: GBP | X173: anglická libra | Y173: 45 | AA173: 119 | AB173: 2022-06-20 | AC173: 1 | AD173: 119
V174: Venezuela | W174: USD | X174: americký dolar | Y174: 65 | AA174: 120 | AB174: 2022-06-21 | AC174: 1 | AD174: 120
V175: Vietnam | W175: EUR | X175: euro | Y175: 40 | AA175: 121 | AB175: 2022-06-22 | AC175: 1 | AD175: 121
V176: Zambie | W176: USD | X176: americký dolar | Y176: 55 | AA176: 122 | AB176: 2022-06-23 | AC176: 1 | AD176: 122
V177: Zimbabwe | W177: USD | X177: americký dolar | Y177: 50 | AA177: 123 | AB177: 2022-06-24 | AC177: 1 | AD177: 123
V178: Ostatní země neuvedené v příloze | W178: EUR | X178: euro | Y178: 35 | AA178: 123 | AB178: 2022-06-25 | AC178: 0 | AD178: 123
AA179: 123 | AB179: 2022-06-26 | AC179: 0 | AD179: 123
AA180: 124 | AB180: 2022-06-27 | AC180: 1 | AD180: 124
AA181: 125 | AB181: 2022-06-28 | AC181: 1 | AD181: 125
AA182: 126 | AB182: 2022-06-29 | AC182: 1 | AD182: 126
AA183: 127 | AB183: 2022-06-30 | AC183: 1 | AD183: 127
AA184: 128 | AB184: 2022-07-01 | AC184: 1 | AD184: 128
AA185: 128 | AB185: 2022-07-02 | AC185: 0 | AD185: 128
AA186: 128 | AB186: 2022-07-03 | AC186: 0 | AD186: 128
AA187: 129 | AB187: 2022-07-04 | AC187: 1 | AD187: 129
AA188: 129 | AB188: 2022-07-05 | AC188: 0 | AD188: 129
AA189: 129 | AB189: 2022-07-06 | AC189: 0 | AD189: 129
AA190: 130 | AB190: 2022-07-07 | AC190: 1 | AD190: 130
AA191: 131 | AB191: 2022-07-08 | AC191: 1 | AD191: 131
AA192: 131 | AB192: 2022-07-09 | AC192: 0 | AD192: 131
AA193: 131 | AB193: 2022-07-10 | AC193: 0 | AD193: 131
AA194: 132 | AB194: 2022-07-11 | AC194: 1 | AD194: 132
AA195: 133 | AB195: 2022-07-12 | AC195: 1 | AD195: 133
AA196: =AA195+AC196 -> 134 | AB196: 2022-07-13 | AC196: 1 | AD196: 134
AA197: 135 | AB197: 2022-07-14 | AC197: 1 | AD197: =AA196+AC197 -> 135
AA198: 136 | AB198: 2022-07-15 | AC198: 1 | AD198: 136
AA199: 136 | AB199: 2022-07-16 | AC199: 0 | AD199: 136
AA200: 136 | AB200: 2022-07-17 | AC200: 0 | AD200: 136
... 369 more rows
